Cogmind - Beta 9.4 @@@ ROGUE MODE // 2020.02.24 @ 19:56:16 Player: Trione Result: Destroyed by G-73 Enforcer with Heavy Laser Performance ------------- Evolutions (9) 4500 Regions Visited (38) 7600 Robots Destroyed (772) 3860 Value Destroyed (33896) 33896 Prototype IDs (113) 2260 Alien Tech Used (15) 3000 Bonus (21587) 21587 TOTAL SCORE: 76703 Bonus ------- Triggered High Security 500 High Alert Combat Kills 12591 Follower Combat Kills 2103 Entered Garrisons 1600 Used RIF Installer 4000 Network Hubs Disabled 800 Aligned with FarCom 300 Met R17 at Cetus 500 Scanned by Researcher 500 Friendly Fire -1307 Cogmind --------- Core Integrity 0/1600 Matter 376/425 Energy 100/100 System Corruption 51% Temperature Cool (9) Movement Core (50) Location -1/Access Parts ------- > --- POWER (2) -------- (None) > --- PROPULSION (5) --- (None) > --- UTILITY (15) ----- (None) > --- WEAPON (3) ------- (None) > --- INVENTORY (6) ---- Potential Cannon Core Stripper Plasma Sword Peak State ------------ > --- POWER ------------ Light Quantum Reactor Light Quantum Reactor > --- PROPULSION ------- Xenon Bombardment Thruster Impulse Thruster Array Improved Q-thruster Improved Q-thruster > --- UTILITY ---------- Experimental Coolant Injector Large Storage Unit Large Storage Unit Large Storage Unit Advanced Energy Well Advanced Energy Well Improved Matter Compressor Advanced Weight Redist. System Gravity Neutralizing Apparatus Gravity Neutralizing Apparatus Experimental Signal Interpreter Advanced Target Analyzer Advanced Phase Shifter Improved Weapon Shielding Improved Hacking Suite > --- WEAPON ----------- Vibroblade Sigix Broadsword > --- INVENTORY -------- Biometal Heavy Treads Xenon Bombardment Thruster Xenon Bombardment Thruster Heavy Regenerative Plating AEGIS Remote Shield Relay Coupler [Swarmer] Relay Coupler [Sentry] Relay Coupler [Sentry] Relay Coupler [Hunter] Sigix Quantum Sheargun Sigix Quantum Sheargun Latent Energy Streamer Potential Cannon Null Cannon Compact Tesla Bomb Launcher Mini Smartbomb Launcher Sigix Terminator Core Stripper Vibroblade [Rating: 195] Favorites ----------- Power Mini Fusion Reactor Engine Deuterium Engine Power Core Micro Fission Core Reactor Mini Fusion Reactor Propulsion Cooled Field Propulsion Drive Treads Light Treads Wheel Wheel Hover Unit Gravmag System Flight Unit Cooled Field Propulsion Drive Utility Large Storage Unit Device Advanced Weight Redist. System Storage Large Storage Unit Processor Experimental Signal Interpreter Hackware Advanced Hacking Suite Protection Improved Light Armor Plating Artifact Phase Armor Weapon Kinetic Spear Energy Gun Sigix Quantum Sheargun Energy Cannon Beam Cannon Ballistic Gun Enhanced Autogun Ballistic Cannon Assault Cannon Launcher Mini Smartbomb Launcher Special Weapon Remote Datajack Impact Weapon Core Stripper Slashing Weapon Power Sword Piercing Weapon Kinetic Spear Special Melee Weapon Advanced Datajack Build | -11 -10 -10 -10 -9 -8 -8 -8 -8 -7 -7 -7 -7 -7 -7 -6 -6 -6 -6 -5 -5 -5 -5 -4 -4 -4 -4 -4 -4 -4 -4 -4 -3 -3 -2 -2 -2 -2 -1 ------- Run | Scr Mat Min Exi Min Mat Gar Mat Gar Fac Was Fac Gar Fac Gar Fac Was Fac Gar Fac Was Fac Gar Fac Was Fac Gar Fac Ext Cet Arc Hub Res Tes Res Qua Sec Gar Acc Slots Evolved 18 | . . . . . 4 . . . 2 . . . . . 2 . . . 2 . . . 2 . . . . . . . . 2 . 2 . . . 2 Power 1 | . . . . . . . . . . . . . . . . . . . . . . . . . . . . . . . . . . 1 . . . . Propulsion 3 | . . . . . . . . . 1 . . . . . . . . . 1 . . . . . . . . . . . . . . 1 . . . . Utility 13 | . . . . . 4 . . . 1 . . . . . 2 . . . 1 . . . 2 . . . . . . . . 2 . . . . . 1 Weapon 1 | . . . . . . . . . . . . . . . . . . . . . . . . . . . . . . . . . . . . . . 1 Parts Attached 1106 | 7 15 5 1 3 36 11 18 4 24 1 15 8 8 11 16 . 34 26 15 . 12 13 37 . 36 62 66 33 24 21 24 50 78 61 94 84 39 114 Power 72 | 1 2 1 . . 1 2 1 1 2 . . . . . 1 . . . 1 . . . 1 . 1 . 2 . 1 . . 3 8 8 8 8 4 15 Engine 4 | 1 2 . . . 1 . . . . . . . . . . . . . . . . . . . . . . . . . . . . . . . . . Core 9 | . . 1 . . . 2 1 1 2 . . . . . 1 . . . . . . . . . . . . . . . . . . . . 1 . . Reactor 59 | . . . . . . . . . . . . . . . . . . . 1 . . . 1 . 1 . 2 . 1 . . 3 8 8 8 7 4 15 Propulsion 156 | 2 4 2 . 2 10 2 3 . 6 . 1 1 . . 3 . 7 . 2 . 1 . 3 . 3 4 12 3 10 11 3 9 5 9 12 8 7 11 Treads 24 | . 2 . . 2 7 2 1 . . . . . . . . . . . . . . . . . . . . . 6 . . . . . . . . 4 Leg . | . . . . . . . . . . . . . . . . . . . . . . . . . . . . . . . . . . . . . . . Wheel 8 | 2 2 2 . . 1 . 1 . . . . . . . . . . . . . . . . . . . . . . . . . . . . . . . Hover 8 | . . . . . 1 . . . 1 . . . . . . . . . . . . . . . . . 1 . . 4 . . . 1 . . . . Flight 116 | . . . . . 1 . 1 . 5 . 1 1 . . 3 . 7 . 2 . 1 . 3 . 3 4 11 3 4 7 3 9 5 8 12 8 7 7 Utility 483 | 2 4 . . . 11 1 5 . 9 1 4 1 5 3 7 . 13 6 7 . 10 2 30 . 30 34 38 12 7 7 15 25 32 21 56 33 16 36 Device 231 | . . . . . 3 . . . 2 . 1 . 1 . 2 . 5 1 3 . 3 2 14 . 21 20 22 6 2 4 10 13 17 10 35 16 5 13 Storage 112 | 2 4 . . . 4 1 1 . 1 . 1 1 3 . 3 . 4 3 2 . 3 . 6 . 4 6 4 3 . . 3 8 4 6 13 7 4 11 Processor 8 | . . . . . . . . . 1 . . . . . 1 . . . . . 2 . . . . . 2 . . . . . . . . 1 1 . Hackware 41 | . . . . . . . . . 5 1 2 . 1 2 . . 2 1 1 . . . 6 . 2 2 1 1 1 3 . 3 1 . . 2 . 4 Protection 88 | . . . . . 4 . 4 . . . . . . 1 1 . 2 1 1 . 2 . 4 . 3 6 9 2 4 . 2 1 10 5 5 7 6 8 Artifact 3 | . . . . . . . . . . . . . . . . . . . . . . . . . . . . . . . . . . . 3 . . . Weapon 395 | 2 5 2 1 1 14 6 9 3 7 . 10 6 3 8 5 . 14 20 5 . 1 11 3 . 2 24 14 18 6 3 6 13 33 23 18 35 12 52 Energy Gun 26 | 2 2 . . 1 . . . . . . . . . . . . . . . . . . . . . . . . . . . 2 2 . . 2 4 11 Energy Cannon 33 | . 1 . . . . . 2 . . . . . . . . . . . . . . 1 . . . 1 . . . . . . 7 1 3 5 2 10 Ballistic Gun 20 | . 1 . . . 4 4 2 . . . . . . . . . . . . . . . . . . . . . 3 . 3 1 2 . . . . . Ballistic Cannon 12 | . 1 2 . . 5 . 2 2 . . . . . . . . . . . . . . . . . . . . . . . . . . . . . . Launcher 93 | . . . . . . 2 . 1 1 . 2 3 1 4 . . 5 10 . . . 5 1 . . 12 5 6 2 . . 1 1 5 1 3 4 18 Special Weapon 26 | . . . . . . . . . 1 . 2 1 1 1 2 . 2 2 3 . . 4 . . . 1 1 3 1 . . . 1 . . . . . Impact Weapon 7 | . . . . . . . . . . . . . . . . . . . . . . . . . . . . . . . . . . . 1 5 1 . Slashing Weapon 84 | . . . . . 5 . 3 . 4 . 6 2 1 3 3 . 5 3 1 . . . . . . 1 1 4 . 1 1 3 2 3 5 13 1 13 Piercing Weapon 77 | . . . . . . . . . . . . . . . . . 2 5 1 . 1 1 1 . 1 7 4 3 . 1 2 4 18 11 8 7 . . Special Melee Weapon 17 | . . . 1 . . . . . 1 . . . . . . . . . . . . . 1 . 1 2 3 2 . 1 . 2 . 3 . . . . Unidentified Prototypes 49 | . . . . . 3 . . . 1 . . . . . . . . . . . . . 2 . 1 . 1 . 3 . 1 3 13 1 13 2 1 4 Parts Lost 141 | . 7 1 . 1 4 5 5 1 2 . . . 1 . 1 . 1 . 1 1 . 3 3 . 3 1 10 3 4 . 6 6 5 2 1 14 7 42 Power 15 | . 2 . . . . 1 . . 1 . . . . . . . . . . . . . . . . . 1 1 . . 1 . . 1 . 2 . 5 Propulsion 36 | . 2 . . 1 . 2 2 1 . . . . . . . . . . . . . . . . . . 3 . 1 . 2 1 1 . 1 7 2 10 Utility 70 | . . . . . 3 . 2 . . . . . 1 . 1 . 1 . 1 . . 3 3 . 3 1 6 1 2 . 2 3 4 1 . 5 4 23 Weapon 20 | . 3 1 . . 1 2 1 . 1 . . . . . . . . . . 1 . . . . . . . 1 1 . 1 2 . . . . 1 4 Highest Loss Streak 11 | . 3 1 . 1 1 3 2 1 1 . . . 1 . 1 . 1 . 1 1 . 2 1 . 1 1 4 2 2 . 3 2 5 1 1 4 3 11 Average Slot Usage (%) 93 | . 98 99 100 100 97 96 96 94 95 100 99 100 100 100 98 93 90 93 92 90 90 93 92 94 93 83 85 91 85 91 94 89 97 96 98 85 74 73 Engine 1 | . 13 9 . . 8 2 . . . . . . . . . . . . . . . . . . . . . . . . . . . . . . . . Core 2 | . . 4 14 14 . 6 9 9 6 7 7 7 7 7 6 6 6 6 3 . . . . . . . . . . . . . . . . . . . Reactor 2 | . . . . . . . . . . . . . . . . . . . 1 5 5 5 4 5 4 5 4 3 4 5 4 2 4 7 7 4 4 5 Treads 3 | . 24 . . 24 17 14 15 9 . . . . . . . . . . . . . . . . . . . . 8 4 . . . . . . . 6 Flight 13 | . . . . . . . . . 23 23 23 23 23 23 18 13 13 13 17 17 17 17 14 15 15 11 14 14 . 4 16 16 18 20 20 17 10 5 Device 12 | . . . . . 9 18 9 9 6 7 6 1 6 . 5 6 6 6 10 11 11 10 18 15 18 19 19 21 9 14 25 20 22 16 16 17 14 10 Storage 16 | . 28 28 28 28 24 27 35 36 7 7 7 13 7 7 12 13 7 9 11 11 11 11 10 15 15 15 14 12 21 18 10 14 16 15 21 21 17 18 Processor 5 | . . . . . . . . . 6 7 7 7 7 7 6 6 6 6 5 4 4 5 5 5 5 5 6 15 15 13 10 9 9 8 4 4 8 7 Hackware 15 | . . . . . . . . . 29 30 30 30 30 35 27 26 28 29 21 23 23 22 21 21 21 14 13 4 5 7 14 19 15 17 14 9 4 5 Protection 3 | . . . . . 17 9 7 9 . . . . . 2 4 6 5 6 4 4 3 5 5 5 . 2 2 7 9 7 . . . 1 . 1 5 5 Ballistic Gun 1 | . 7 . . . 8 17 8 . . . . . . . . . . . . . . . . . . . . . 4 6 . . . . . . . . Ballistic Cannon 1 | . 1 26 15 14 6 . 1 16 . . . . . . . . . . . . . . . . . . . . . . . . . . . . . . Slashing Weapon 3 | . . . . . 2 . 6 1 8 7 7 9 13 5 10 13 5 4 . . . . . . . . . 2 . . . 1 . . 1 2 . 3 Piercing Weapon 2 | . . . . . . . . . . . . . . . . . 4 3 5 5 9 5 9 5 4 2 4 4 . 3 4 2 6 4 4 3 . . Naked Turns 1 | . . . . . . . . . . . . . . . . . . . . . . . . . . . . . . . . . . . . . . 1 Heaviest Build 179 | 15 51 51 51 51 79 79 90 95 19 19 20 23 23 26 31 31 31 35 40 40 40 41 59 59 66 73 65 81 114 114 72 71 120 101 118 123 137 179 Greatest Support 178 | 26 40 32 20 40 56 56 50 28 20 20 22 24 24 24 31 31 31 39 42 42 51 42 62 62 66 83 75 75 160 160 69 83 97 102 118 120 79 178 Greatest Overweight (x) 22 | . 1 2 2 1 3 2 8 8 . . . . . 1 . . 1 . . . . . 3 . 4 4 3 3 2 9 1 . 1 3 3 2 8 22 Average Overweight (x) . | . . 1 2 1 1 1 3 4 . . . . . . . . . . . . . . . . . . . . . . . . . . . . . . Largest Inventory Capacity 36 | 8 16 16 16 16 22 24 28 28 28 8 8 8 10 8 10 10 10 10 14 14 16 14 20 20 20 22 26 22 22 22 16 22 22 28 36 36 24 30 Average Capacity 17 | 6 12 16 16 16 18 22 27 28 8 8 8 8 8 8 8 10 10 10 13 14 14 14 15 20 20 18 19 18 22 20 16 17 22 25 31 30 19 27 Most Carried 36 | 4 12 16 16 16 22 24 28 28 28 8 8 8 8 8 10 10 10 10 14 14 14 14 17 18 20 20 20 22 22 22 16 22 22 28 36 36 24 30 Average Carried 17 | 3 9 13 15 15 17 21 27 28 7 7 7 8 7 7 8 10 9 9 13 14 13 13 15 17 19 17 18 16 21 20 15 17 21 24 30 29 19 26 Final Capacity 36 | 8 16 16 16 16 22 24 28 28 8 8 8 8 8 8 10 10 10 10 14 14 14 14 20 20 20 20 16 22 22 16 16 22 22 22 36 36 24 6 Final Carried 36 | 4 9 16 16 16 22 24 28 28 8 8 8 8 7 8 10 10 10 10 14 14 14 13 17 18 20 20 16 19 22 16 15 22 22 22 36 36 24 5 Class Distribution -------------------- 37% | Hacker-Sprinter 10% | Mutant 9% | Hauler-Mutant 6% | Scavenger-Mutant 6% | Hacker-Mutant 5% | Hacker-Scout 4% | Scavenger-Sprinter 3% | Hacker-Ninja Dominant Class ---------------- Mutant | -10/Materials Mutant | -10/Mines Mutant | -10/Exiles Mutant | -9/Mines Mutant | -8/Materials Hauler-Mutant | -8/Garrison Hauler-Mutant | -8/Materials Hauler-Mutant | -8/Garrison Hacker-Sprinter | -7/Factory Hacker-Sprinter | -7/Waste Hacker-Sprinter | -7/Factory Hacker-Sprinter | -7/Garrison Hacker-Sprinter | -7/Factory Hacker-Sprinter | -7/Garrison Hacker-Sprinter | -6/Factory Hacker-Mutant | -6/Waste Hacker-Mutant | -6/Factory Hacker-Sprinter | -6/Garrison Hacker-Sprinter | -5/Factory Hacker-Sprinter | -5/Waste Hacker-Sprinter | -5/Factory Hacker-Sprinter | -5/Garrison Hacker-Sprinter | -4/Factory Hacker-Sprinter | -4/Waste Hacker-Sprinter | -4/Factory Hacker-Mutant | -4/Garrison Hacker-Sprinter | -4/Factory Machinist-Ninja | -4/Extension Scavenger-Mutant | -4/Cetus Scavenger-Assassin | -4/Archives Hacker-Ninja | -4/Hub_04(d) Wizard-Ninja | -3/Research Hacker-Scout | -3/Testing Hacker-Scout | -2/Research Scavenger-Sprinter | -2/Quarantine Scavenger-Sprinter | -2/Section 7 Scavenger-Mutant | -2/Garrison Scavenger-Mutant | -1/Access Resources | -11 -10 -10 -10 -9 -8 -8 -8 -8 -7 -7 -7 -7 -7 -7 -6 -6 -6 -6 -5 -5 -5 -5 -4 -4 -4 -4 -4 -4 -4 -4 -4 -3 -3 -2 -2 -2 -2 -1 ----------- Run | Scr Mat Min Exi Min Mat Gar Mat Gar Fac Was Fac Gar Fac Gar Fac Was Fac Gar Fac Was Fac Gar Fac Was Fac Gar Fac Ext Cet Arc Hub Res Tes Res Qua Sec Gar Acc Matter Collected 30547 | 270 314 231 10 49 1517 597 264 106 445 10 259 206 195 86 589 . 872 458 971 . 130 811 1123 . 605 2177 2177 1729 526 446 927 3176 1751 1101 1658 1549 960 2252 Remotely . | . . . . . . . . . . . . . . . . . . . . . . . . . . . . . . . . . . . . . . . Salvage Created 40564 | 85 818 173 . 52 1701 899 831 214 404 . 298 298 142 151 933 . 630 459 1061 . 542 171 1202 . 1202 1050 2101 1261 1722 639 1443 2198 1228 1687 2702 1509 971 9787 Parts 1581 | 2 45 14 . 4 101 38 33 15 14 . 33 19 12 5 33 . 32 10 40 . 17 13 37 . 59 43 76 49 59 33 41 79 67 63 53 56 45 341 Haulers Intercepted 65 | . 2 . . . 5 . 3 . 2 . . . . . 5 . 2 . 5 . 3 . 6 . 6 . 6 2 . . 1 6 1 5 2 . . 3 Recyclers Shooed 31 | . . 1 . . 1 . 1 . 2 . . . . . . . . . . . 1 . . . 1 . 3 . . . 2 2 1 2 5 1 . 8 Parts Field Recycled . | . . . . . . . . . . . . . . . . . . . . . . . . . . . . . . . . . . . . . . . Retrieved Matter . | . . . . . . . . . . . . . . . . . . . . . . . . . . . . . . . . . . . . . . . Parts Self-Destructed . | . . . . . . . . . . . . . . . . . . . . . . . . . . . . . . . . . . . . . . . Prevented . | . . . . . . . . . . . . . . . . . . . . . . . . . . . . . . . . . . . . . . . Kills | -11 -10 -10 -10 -9 -8 -8 -8 -8 -7 -7 -7 -7 -7 -7 -6 -6 -6 -6 -5 -5 -5 -5 -4 -4 -4 -4 -4 -4 -4 -4 -4 -3 -3 -2 -2 -2 -2 -1 ------- Run | Scr Mat Min Exi Min Mat Gar Mat Gar Fac Was Fac Gar Fac Gar Fac Was Fac Gar Fac Was Fac Gar Fac Was Fac Gar Fac Ext Cet Arc Hub Res Tes Res Qua Sec Gar Acc Combat Hostiles Destroyed 456 | . 14 5 . 2 40 18 9 10 5 . 9 12 . 5 . . 11 19 1 . . 15 2 . . 22 11 17 20 4 8 3 7 9 10 17 18 133 Melee 47 | . . . . . 2 . 4 . 1 . . 2 . . . . . 3 1 . . . . . . 1 2 6 . . 1 . 3 5 1 11 . 4 Guns 70 | . 6 . . 1 25 15 1 . . . . . . . . . . . . . . . . . . . . . . 4 2 3 . . . . 7 6 Cannons 50 | . 8 5 . 1 13 . 3 6 . . . . . . . . . . . . . . . . . . . . . . . . 3 . . . 1 10 AOE 215 | . . . . . . 3 1 4 4 . 9 10 . 5 . . 11 16 . . . 15 2 . . 20 9 10 4 . 5 . 1 4 8 2 8 64 Classes Destroyed 26 | 1 5 1 . . 5 3 1 . . . 1 . . . . . 1 . . . . 1 . . . 1 . 1 . . . . 1 . 1 . . 3 Worker 66 | . 3 . . 1 3 . 2 . 1 . 4 . . . 3 . 3 . 3 . . . 1 . 4 . 7 1 . . 2 9 7 3 1 3 . 5 Builder 18 | . . . . . 1 . 1 . . . . . . . . . 2 . . . . . 1 . 1 . . 1 . . 1 . . . . 2 . 8 Tunneler 12 | . . 1 . . . . . . . . . . . . 4 . . . . . 1 . . . . . 2 1 . . 1 . . 2 . . . . Hauler 65 | . 2 . . . 5 . 3 . 2 . . . . . 5 . 2 . 5 . 3 . 6 . 6 . 6 2 . . 1 6 1 5 2 . . 3 Recycler 69 | 1 1 . . . 2 . 1 . 3 . . . 1 . 2 . 1 . 3 . 1 . 3 . 2 . 8 . . . 5 9 3 4 13 1 . 5 Carrier 2 | . . . . . . . . . . . . . . . . . . . . . . . . . . . . . . . . . . . . . . 2 Mechanic 11 | . . . . . . . 1 . . . . . . . 1 . 2 . . . . . . . . . . . . . . 1 . . . . . 6 Operator 13 | . . . . . 1 . . . . . . 1 1 . . . . . . . . . . . . . 1 1 . 8 . . . . . . . . Drone 1 | . . . . . . . . . . . . . . . . . 1 . . . . . . . . . . . . . . . . . . . . . Watcher 52 | . 3 . . . 1 . 1 . . . 2 . 3 . 1 . 1 . 2 . 2 . 2 . 6 . 6 1 2 . 4 . 2 3 2 2 . 6 Swarmer 114 | . 3 1 . 2 14 4 . 4 4 . 8 7 . . . . 9 4 . . . 10 . . . 8 9 . . . 3 . . 4 4 . 7 9 Saboteur 5 | . . . . . . . . . . . . . . . . . . . . . . . . . . . . 1 . . . . . . . . . 4 Grunt 180 | . 11 4 . . 16 9 4 5 . . . 2 . 4 . . . 13 1 . . 2 2 . . 9 . 10 7 . 1 . . . 5 8 5 62 Brawler 13 | . . . . . . 1 . . . . . . . . . . . 1 . . . . . . . 1 . 1 1 . . . . . . . . 8 Duelist 13 | . . . . . 1 . . . . . . . . 1 . . . . . . . . . . . . . . . . . . . . . 1 . 10 Protector 6 | . . . . . . 1 . . . . . . . . . . . . . . . . . . . . . . . . 1 . . . . . . 4 Researcher 1 | . . . . . . . . . . . . . . . . . . . . . . . . . . . . . . . . . 1 . . . . . Sentry 32 | . . . . . 8 2 3 1 . . . . . . . . . 1 . . . . . . . . . 2 . 4 1 . . 5 . 3 . 2 Demolisher 1 | . . . . . . 1 . . . . . . . . . . . . . . . . . . . . . . . . . . . . . . . . Specialist 1 | . . . . . . . . . . . . . . . . . . . . . . 1 . . . . . . . . . . . . . . . . Hunter 30 | . . . . . 1 . 2 . 1 . . 2 . . . . . . . . . 2 . . . 2 . 3 4 . . . . . . . 4 9 Programmer 43 | . . . . . . . . . . . 1 1 . . . . 1 . . . . . . . . 2 2 . . . 2 3 7 . . 5 1 18 Behemoth 2 | . . . . . . . . . . . . . . . . . . . . . . . . . . 1 . . . . . . . . . . 1 . Cetus Guard 8 | . . . . . . . . . . . . . . . . . . . . . . . . . . . . . 8 . . . . . . . . . Investigator 2 | . . . . . . . . . . . . . . . . . . . . . . . . . . . . . . . . . . . . . . 2 Striker 5 | . . . . . . . . . . . . . . . . . . . . . . . . . . . . . . . . . . . . . . 5 Executioner 2 | . . . . . . . . . . . . . . . . . . . . . . . . . . . . . . . . . . . . . . 2 Fortress 1 | . . . . . . . . . . . . . . . . . . . . . . . . . . . . . . . . . . . 1 . . . Wasp 3 | . . . . . . . . . . . 3 . . . . . . . . . . . . . . . . . . . . . . . . . . . Thug 1 | . . 1 . . . . . . . . . . . . . . . . . . . . . . . . . . . . . . . . . . . . Best Kill Streak 29 | 1 4 2 . 2 4 4 4 5 6 . 9 7 1 3 5 . 7 7 2 . 2 6 5 . 2 6 5 8 8 3 10 6 4 6 4 8 5 29 Combat Bots Only 23 | . 3 2 . 2 4 4 2 5 4 . 9 7 . 3 . . 6 7 1 . . 6 2 . . 6 4 7 8 3 7 2 4 4 4 7 5 23 Max Kills in Single Turn 22 | 1 1 1 . 1 2 2 3 3 2 . 4 2 1 1 1 . 3 3 1 . 1 2 2 . 1 4 3 3 3 1 7 1 2 3 3 2 2 22 Gunslinging . | . . . . . . . . . . . . . . . . . . . . . . . . . . . . . . . . . . . . . . . Exploded 18 | . . . . . . 2 1 3 1 . 4 2 . 1 . . 2 3 . . . 2 2 . . 4 3 3 3 . 4 . 1 3 3 1 2 18 Melee 1 | . . . . . 1 . 1 . 1 . . 1 . . . . . 1 1 . . . . . . 1 1 1 . . 1 . 1 1 1 1 . 1 Uniques/NPCs Destroyed . | . . . . . . . . . . . . . . . . . . . . . . . . . . . . . . . . . . . . . . . Combat | -11 -10 -10 -10 -9 -8 -8 -8 -8 -7 -7 -7 -7 -7 -7 -6 -6 -6 -6 -5 -5 -5 -5 -4 -4 -4 -4 -4 -4 -4 -4 -4 -3 -3 -2 -2 -2 -2 -1 -------- Run | Scr Mat Min Exi Min Mat Gar Mat Gar Fac Was Fac Gar Fac Gar Fac Was Fac Gar Fac Was Fac Gar Fac Was Fac Gar Fac Ext Cet Arc Hub Res Tes Res Qua Sec Gar Acc Damage Taken 31192 | . 773 363 . 31 1397 986 1090 118 332 . 248 215 54 251 19 . 511 184 161 57 24 330 521 . 154 484 1202 1056 1182 338 687 842 875 1128 456 2572 1861 10690 Core 4959 | . 74 50 . . 166 130 142 12 104 . 48 112 18 91 19 . 110 60 . . . 62 42 . 40 134 138 215 79 25 80 233 97 210 42 515 303 1608 Absorbed by Shields 5094 | . . . . . . . . . . . . 19 . . . . 20 5 . . . . 37 . . . . 65 . 349 105 . 136 . 118 . 859 3381 Reduced by Siege Mode 762 | . . . . . . . . . . . . . . . . . . . . . . . . . . . . . 12 26 . . . . . . . 724 Core Remaining (%) 58 | 100 . . . 50 . . . 18 . . . . . 46 . . . 77 . . . 93 . . . . . . . . 34 . 74 . . . 34 . Volleys Fired 1105 | 5 82 25 . 6 138 83 32 21 4 . 5 7 4 25 4 . 12 30 4 . . 28 6 . . 67 18 38 27 21 18 17 14 11 13 17 83 240 Largest 2 | 2 2 2 . 2 2 2 2 2 1 . 1 1 1 1 1 . 1 1 1 . . 1 1 . . 1 1 1 1 2 1 1 1 1 1 2 2 2 Hottest 230 | 90 110 95 . 100 100 60 123 92 36 . 36 36 36 36 30 . 80 80 30 . . 80 80 . . 80 80 80 49 70 35 75 200 130 130 200 200 230 Shots Fired 1550 | 10 149 50 . 12 274 162 53 36 4 . 5 7 4 25 4 . 12 30 4 . . 28 6 . . 66 18 38 27 42 18 17 14 11 13 18 124 269 Gun 703 | 10 108 . . 6 134 159 25 . . . . . . . . . . . . . . . . . . . . . 1 42 18 17 5 . . 2 92 84 Cannon 394 | . 41 50 . 6 140 . 28 34 . . . . . . . . . . . . . . . . . . . . . . . . 9 1 5 11 1 68 Launcher 398 | . . . . . . 3 . 2 4 . 5 7 3 15 . . 11 28 . . . 20 6 . . 63 17 17 26 . . . . 10 8 5 31 117 Special 55 | . . . . . . . . . . . . . 1 10 4 . 1 2 4 . . 8 . . . 3 1 21 . . . . . . . . . . Kinetic 686 | . 60 47 . 6 268 159 33 34 . . . . . . . . . . . . . . . . . . . . 1 42 18 13 5 . . . . . Thermal 164 | 5 55 3 . 6 6 . 9 . . . . . . . . . . . . . . . . . . . . . . . . . 9 1 5 11 1 53 Explosive 240 | . . . . . . 3 . 2 4 . 5 7 3 15 . . 11 28 . . . 20 6 . . 40 17 11 . . . . . 10 8 5 24 21 Electromagnetic 243 | 5 34 . . . . . 11 . . . . . . . . . . . . . . . . . . 23 . 6 26 . . 4 . . . . 7 127 Slashing 162 | . . . . . . . . . . . . . . . . . . . . . . . . . . . . . . . . . . . . 2 92 68 Robot Hit Streak 36 | 4 11 9 . 2 11 28 29 11 1 . 1 3 4 5 1 . 7 8 3 . . 14 19 . . 25 33 35 7 21 2 6 4 . . . 10 36 Robot Miss Streak 5 | 1 3 4 . 2 4 3 2 1 1 . 1 . . 2 1 . 1 . 1 . . . . . . . . 2 2 2 3 2 1 . . . 5 2 Penetration Max 1 | . . . . . . . . . . . . . . . . . . . . . . . . . . . . . 1 1 . 1 . . . . 1 1 Secondary Targets 7 | . . . . . 3 4 . . . . . . . . . . . . . . . . . . . . . . . . . . . . . . . . Max Gunslinging Chain 1 | . . . . . 1 1 . . . . . . . . . . . . . . . . . . . . . . . . . . . . . . . . Shots Hit Robots 1495 | 7 87 27 6 5 184 122 69 20 22 . 11 6 9 12 38 . 28 8 27 . 11 11 26 . 34 22 56 56 7 50 23 66 44 48 50 59 66 178 Core Hits 1212 | 2 32 12 . 3 77 50 25 15 16 . 21 14 5 11 13 . 25 35 15 . 7 33 24 . 19 53 46 62 26 19 42 32 28 40 35 38 62 275 Critical Hits 95 | . 1 1 . . 1 . 2 . . . . . . . . . 2 . . . . . 3 . 1 4 3 2 . 7 2 4 6 1 4 6 17 28 Critical Kills 41 | . 1 1 . . 1 . 1 . . . . . . . . . 1 . . . . . 1 . . 1 2 . . 5 2 1 3 1 4 1 2 13 Critical Parts Destroyed 45 | . . . . . . . 1 . . . . . . . . . 1 . . . . . 2 . 1 3 1 2 . . . 3 3 . . 4 9 15 Melee Attacks 2540 | . . . 6 . 40 . 80 . 165 . 88 12 150 9 143 . 84 12 175 . 46 2 160 . 193 21 178 52 . 19 77 167 99 168 121 234 . 39 Kinetic 16 | . . . . . . . . . . . . . . . . . . . . . . . . . . . . . . . . . . . 3 13 . . Impact . | . . . . . . . . . . . . . . . . . . . . . . . . . . . . . . . . . . . . . . . Slashing 1120 | . . . . . 40 . 80 . 158 . 88 12 150 9 143 . 67 4 . . . . . . . . 13 12 . 5 12 47 19 17 60 145 . 39 Piercing 1378 | . . . . . . . . . . . . . . . . . 17 8 175 . 46 2 160 . 191 21 162 33 . 14 65 119 80 151 58 76 . . Sneak Attacks 256 | . . . 6 . 3 . 5 . 12 . 7 . 3 . 19 . 8 . 11 . 6 . 13 . 17 1 29 15 . 9 11 26 10 14 25 5 . 1 Combat Hostiles 5 | . . . . . . . . . 1 . . . . . . . . . . . . . . . . . . 3 . . . . . 1 . . . . Follow-up Attacks 41 | . . . . . . . . . . . . . 1 . 4 . 1 . . . 3 . 3 . . . . 3 . . . 2 7 3 6 7 . 1 Damage Inflicted 139252 | 93 1343 495 . 77 4000 1952 2295 943 1458 . 1729 859 619 757 2693 . 2681 3086 1537 . 933 2660 2580 . 2800 5594 6214 5280 2377 2326 3884 5256 4048 4552 6551 4690 5368 47522 Guns 10270 | 93 810 . . 45 1289 1679 277 . . . . . . . . . . . . . . . . . . . . . 26 864 54 606 123 . . . 2298 2106 Cannons 9922 | . 504 495 . 32 2214 . 597 596 . . . . . . . . . . . . . . . . . . . . . . . . 907 . . . 83 4494 Explosions 71482 | . 29 . . . . 273 154 347 433 . 891 705 . 668 . . 1253 2894 . . . 2660 736 . . 4218 1707 3425 2351 . 1952 . 357 991 1442 917 2987 40092 Melee 47555 | . . . . . 496 . 1267 . 1025 . 838 154 619 89 2693 . 1428 192 1537 . 933 . 1844 . 2800 1376 4507 1855 . 1462 1878 4650 2639 3561 5109 3773 . 830 Ramming 23 | . . . . . 1 . . . . . . . . . . . . . . . . . . . . . . . . . . . 22 . . . . . Kinetic 9305 | . 348 443 . 32 3468 1679 420 596 . . . . . . . . . . . . . . . . . . . . 26 864 54 562 123 . 119 571 . . Thermal 33569 | 38 603 52 . 45 35 . 340 . . . . . . . . . . . . . . . 26 . . . . . . . . . 1264 . . . 83 31083 Explosive 29362 | . . . . . . 273 . 347 433 . 891 705 . 668 . . 1253 2894 . . . 2660 710 . . 3983 1707 3052 . . . . . 991 1442 917 2795 3641 Electromagnetic 16108 | 55 392 . . . . . 268 . . . . . . . . . . . . . . . . . . 235 . 373 2351 . 1952 44 . . . . 192 10246 Impact . | . . . . . . . . . . . . . . . . . . . . . . . . . . . . . . . . . . . . . . . Slashing 23241 | . . . . . 496 . 1267 . 1025 . 838 154 619 89 2693 . 1088 116 . . . . . . . . 306 378 . 304 315 1762 510 884 2569 2978 2298 2552 Piercing 27644 | . . . . . . . . . . . . . . . . . 340 76 1537 . 933 . 1844 . 2800 1376 4201 1477 . 1158 1563 2888 2129 2677 2421 224 . . Highest Corruption 51 | . . . . . 2 2 2 2 . . . . 1 1 1 9 9 9 . . . . 5 14 14 7 3 . . . 5 9 18 . . 6 7 51 Average Corruption 5 | . . . . . 2 2 2 2 . . . . 1 1 1 5 9 9 . . . . 4 9 11 5 1 . . . 2 7 13 . . 3 6 9 Corruption Purged 18 | . . . . . . . . . . . . . . . . . . . . . . . . . 7 4 7 . . . . . . . . . . . Effects 714 | . . . . . 18 18 12 2 . . . . 8 1 4 1 54 20 . . . . 45 1 160 37 27 . . . 3 31 132 . . 32 28 80 Message Errors 143 | . . . . . 3 6 4 . . . . . 2 . 3 . 15 7 . . . . 11 . 22 10 7 . . . 1 4 28 . . 6 4 10 Matter Fused 102 | . . . . . . . . . . . . . . . . . 14 2 . . . . 11 . 17 7 2 . . . . 7 12 . . 12 4 14 Heat Flow Errors 60 | . . . . . 2 3 2 2 . . . . . . . . 5 3 . . . . 2 . 9 7 2 . . . . 2 13 . . 1 . 7 Energy Discharges 63 | . . . . . 6 3 . . . . . . 2 . . 1 3 2 . . . . 9 . 7 3 3 . . . 1 1 10 . . 4 4 4 Parts Rejected 4 | . . . . . . . . . . . . . . . . . . . . . . . . . . . . . . . 1 2 1 . . . . . Data Loss (minor) 63 | . . . . . 3 1 3 . . . . . 3 1 1 . 6 2 . . . . 3 . 5 3 7 . . . . 4 10 . . 4 2 5 Data Loss (major) 26 | . . . . . . . . . . . . . . . . . 4 . . . . . 4 . 7 1 . . . . . 4 4 . . . . 2 Misfires 3 | . . . . . . . . . . . . . . . . . . . . . . . . . . . . . . . . . . . . . 2 1 Alerts 4 | . . . . . . . . . . . . . . . . . . . . . . . . . 2 . . . . . . . 1 . . . . 1 Misdirections 127 | . . . . . . . . . . . . . . . . . . . . . . . . 1 75 . . . . . . . 41 . . . . 10 Targeting Errors 108 | . . . . . 3 4 2 . . . . . 1 . . . 7 4 . . . . 5 . 16 5 6 . . . . 7 12 . . 5 9 22 Weapon Failures 11 | . . . . . 1 1 1 . . . . . . . . . . . . . . . . . . 1 . . . . . . . . . . 3 4 Overload Shots . | . . . . . . . . . . . . . . . . . . . . . . . . . . . . . . . . . . . . . . . Overflow Damage 15415 | . 12 15 . . 147 . 120 25 227 . 22 13 190 62 736 . 342 161 60 . 82 107 122 . 257 226 1003 292 61 463 651 829 599 851 1848 515 152 5225 Projectiles 838 | . 7 15 . . 39 . 5 9 . . . . . . . . . . . . . . . . . . . . . . . . 73 . . . . 690 Explosions 5623 | . 5 . . . . . 8 16 . . 22 13 . 18 . . 40 161 . . . 107 31 . . 109 131 125 61 . 43 . 95 42 45 8 152 4391 Melee 8954 | . . . . . 108 . 107 . 227 . . . 190 44 736 . 302 . 60 . 82 . 91 . 257 117 872 167 . 463 608 829 431 809 1803 507 . 144 Knockbacks 49 | . 3 9 . . 30 . 2 5 . . . . . . . . . . . . . . . . . . . . . . . . . . . . . . Impact . | . . . . . . . . . . . . . . . . . . . . . . . . . . . . . . . . . . . . . . . Kinetic 45 | . 3 7 . . 28 . 2 5 . . . . . . . . . . . . . . . . . . . . . . . . . . . . . . Secondary 4 | . . 2 . . 2 . . . . . . . . . . . . . . . . . . . . . . . . . . . . . . . . . Self-Inflicted Damage 2088 | . 36 . . . . . 45 . . . 24 . 55 13 . . 90 . . . . . . . . 95 . 54 32 . 165 . 10 . 24 . 66 1379 Shots 47 | . 1 . . . . . 1 . . . 1 . 1 1 . . 2 . . . . . . . . 4 . 2 2 . 2 . . . 1 . 3 26 Rammed 5 | . . 1 . . . . . . . . . . . . . . . . . . . . . . . . . . . . . . 4 . . . . . Targets Rammed 6 | . . 1 . . 1 . . . . . . . . . . . . . . . . . . . . . . . . . . . 4 . . . . . Kicked . | . . . . . . . . . . . . . . . . . . . . . . . . . . . . . . . . . . . . . . . Crushed 1 | . . . . . 1 . . . . . . . . . . . . . . . . . . . . . . . . . . . . . . . . . Highest Temperature 372 | 110 285 127 . 162 136 199 191 192 . . . 7 10 41 14 . 260 280 14 . 5 268 346 21 246 329 241 300 34 . 17 287 364 372 150 219 247 239 Average Temperature 68 | 52 86 42 . 73 21 75 62 65 . . . 5 7 13 10 . 104 74 11 . 3 105 132 12 57 111 61 81 26 . 10 95 82 30 46 66 65 62 Received Heat Transfer 4219 | . 330 138 . . 459 540 306 45 21 . . 21 . 144 9 . 15 33 36 . 9 18 51 . . 27 69 124 54 32 27 48 . 162 39 270 242 950 Effects 10 | . 1 . . . . . . . . . . . . . . . 1 . . . . 1 . . . 2 . 1 . . . . 3 1 . . . . Shutdowns 1 | . . . . . . . . . . . . . . . . . . . . . . . . . . . . . . . . . . 1 . . . . Energy Bleed 2 | . . . . . . . . . . . . . . . . . . . . . . 1 . . . . . 1 . . . . . . . . . . Interference 7 | . 1 . . . . . . . . . . . . . . . 1 . . . . . . . . 2 . . . . . . 3 . . . . . Siege Activations 24 | . . . . . . . . . . . . . . . . . . . . . . . . . . . . . 4 2 . . . . . . . 18 Total Turns 393 | . . . . . . . . . . . . . . . . . . . . . . . . . . . . . 24 69 . . . . . . . 300 Longest Duration 55 | . . . . . . . . . . . . . . . . . . . . . . . . . . . . . 8 55 . . . . . . . 49 Robots Corrupted 76 | . . . . . . . . . . . . . . . . . . . . . . . . . . 1 . 1 17 . . . . . . . 2 55 Combat Hostiles 69 | . . . . . . . . . . . . . . . . . . . . . . . . . . 1 . 1 16 . . . . . . . 2 49 Parts Fried 160 | . 2 . . . . . 1 . . . . . . . . . . . . . . . . . . 1 . 2 23 . 18 . . . . . 2 111 Impact Corruptions . | . . . . . . . . . . . . . . . . . . . . . . . . . . . . . . . . . . . . . . . Robots Melted . | . . . . . . . . . . . . . . . . . . . . . . . . . . . . . . . . . . . . . . . Combat Hostiles . | . . . . . . . . . . . . . . . . . . . . . . . . . . . . . . . . . . . . . . . Parts Melted 9 | . 4 . . . . . . . . . . 1 . . . . . . . . . . . . . . . . . . . . . . . . 2 2 Heat Transferred 9772 | 111 1382 111 . 111 74 . 496 . . . . . . . . . . . . . . . 50 . . . . . . . . . 490 . . . 50 6897 Parts Sabotaged 13 | . . . . . . . . . . . . . . . . . . . . . . . . . . . . . . . . . . . . . . 13 Parts Stolen . | . . . . . . . . . . . . . . . . . . . . . . . . . . . . . . . . . . . . . . . Parts Stripped . | . . . . . . . . . . . . . . . . . . . . . . . . . . . . . . . . . . . . . . . Power Chain Reactions 14 | . 1 . . . . . 1 . . . . . . . . . . . . . . . . . . . . 1 . . . . . . . . . 11 Missiles Intercepted . | . . . . . . . . . . . . . . . . . . . . . . . . . . . . . . . . . . . . . . . Latent Energy Used 85 | . . . . . . . . . . . . . . . . . . . . . . . . . . . . . . . . . . . . . . 85 LE Corruption 16 | . . . . . . . . . . . . . . . . . . . . . . . . . . . . . . . . . . . . . . 16 Alert | -11 -10 -10 -10 -9 -8 -8 -8 -8 -7 -7 -7 -7 -7 -7 -6 -6 -6 -6 -5 -5 -5 -5 -4 -4 -4 -4 -4 -4 -4 -4 -4 -3 -3 -2 -2 -2 -2 -1 ------- Run | Scr Mat Min Exi Min Mat Gar Mat Gar Fac Was Fac Gar Fac Gar Fac Was Fac Gar Fac Was Fac Gar Fac Was Fac Gar Fac Ext Cet Arc Hub Res Tes Res Qua Sec Gar Acc Peak Influence 4576 | 5 180 196 . 72 611 993 516 401 667 183 580 562 680 303 410 38 494 907 498 155 484 813 603 211 475 1264 812 1812 1195 497 1800 1003 614 1100 652 676 1286 4576 Average Influence 386 | 2 46 93 . 64 196 725 381 299 190 183 205 368 199 148 67 33 153 558 106 137 215 405 258 211 199 889 401 956 900 409 228 416 308 537 293 335 1083 1915 Maximum Alert Level 5 | . . . . . 2 3 2 2 2 . 2 2 2 1 2 . 2 3 2 . 2 3 2 1 2 4 3 5 4 2 5 3 2 4 2 2 4 5 Low Security (%) 10 | 100 100 100 . 100 66 . . 18 70 100 53 23 53 67 92 100 57 4 81 100 61 4 52 . 64 2 31 . . . 66 7 45 14 24 20 . . Level 1 19 | . . . . . 20 10 67 43 20 . 39 27 28 32 5 . 40 14 5 . 16 43 5 100 8 11 17 . . 37 28 63 7 19 54 47 . . Level 2 16 | . . . . . 13 20 32 38 9 . 7 48 18 . 2 . 2 52 13 . 22 41 42 . 27 8 43 37 15 62 . 8 47 44 21 32 8 . Level 3 16 | . . . . . . 69 . . . . . . . . . . . 29 . . . 11 . . . 38 7 29 63 . . 21 . 21 . . 36 26 Level 4 17 | . . . . . . . . . . . . . . . . . . . . . . . . . . 40 . 27 21 . 4 . . . . . 54 22 Level 5 3 | . . . . . . . . . . . . . . . . . . . . . . . . . . . . 5 . . 1 . . . . . . 9 High Security 16 | . . . . . . . . . . . . . . . . . . . . . . . . . . . . . . . . . . . . . . 40 Max Security . | . . . . . . . . . . . . . . . . . . . . . . . . . . . . . . . . . . . . . . . Squads Dispatched 158 | . 4 . . . 6 . 5 . 2 . 4 . 6 . 6 . 4 . 5 . 2 . 9 . 8 . 7 8 . . 5 5 8 6 7 7 . 44 Investigation 31 | . 2 . . . 2 . 2 . . . 2 . 4 . 3 . . . 3 . 1 . 2 . 3 . 1 1 . . 1 1 1 . 1 1 . . Extermination 49 | . . . . . . . . . 1 . 2 . 2 . 2 . 1 . 2 . 1 . 5 . 4 . 4 . . . 1 4 5 3 5 5 . 2 Reinforcement 32 | . 2 . . . 1 . 3 . 1 . . . . . 1 . 3 . . . . . 2 . . . 1 5 . . 3 . 1 1 1 1 . 6 Assault 41 | . . . . . . . . . . . . . . . . . . . . . . . . . 1 . 1 2 . . . . 1 2 . . . 34 Garrison 5 | . . . . . 3 . . . . . . . . . . . . . . . . . . . . . . . . . . . . . . . . 2 Intercept . | . . . . . . . . . . . . . . . . . . . . . . . . . . . . . . . . . . . . . . . Construction Impeded 12 | . . . . . . . . . 1 . . . . . . . 2 . . . . . 1 . . . . 2 . . . . . 1 . 1 . 4 Haulers Reinforced 3 | . . . . . . . . . . . . . . . 1 . . . . . . . . . . . . . . . . . . . 1 . . 1 Alert ID Control Effect 4 | . . . . . . . . . . . . . . . . . . . . . . . . . . 2 . 2 . . . . . . . . . . Stealth | -11 -10 -10 -10 -9 -8 -8 -8 -8 -7 -7 -7 -7 -7 -7 -6 -6 -6 -6 -5 -5 -5 -5 -4 -4 -4 -4 -4 -4 -4 -4 -4 -3 -3 -2 -2 -2 -2 -1 --------- Run | Scr Mat Min Exi Min Mat Gar Mat Gar Fac Was Fac Gar Fac Gar Fac Was Fac Gar Fac Was Fac Gar Fac Was Fac Gar Fac Ext Cet Arc Hub Res Tes Res Qua Sec Gar Acc Distress Signals 58 | . . . . . 8 . 4 . 5 . 1 . . . 1 . 1 . 4 . 1 . 3 . 2 . 3 3 2 . 3 2 2 4 . 5 . 4 Communications Jammed 33 | . . . . . . . . . . . . . . . . . . . . . 1 . 12 . . . 3 5 . . 9 . 3 . . . . . Distress Signals 32 | . . . . . . . . . . . . . . . . . . . . . . . 12 . . . 3 5 . . 9 . 3 . . . . . Times Spotted 1147 | . 24 13 . 4 66 23 26 10 48 . 26 16 15 25 22 3 28 16 21 5 8 17 47 5 37 23 49 65 22 20 30 44 23 34 22 70 17 223 Peak Tracking Total 29 | . 4 5 . 4 4 6 4 5 7 . 10 7 2 10 4 3 6 4 3 5 2 6 12 5 9 5 6 14 8 1 18 11 4 7 5 10 5 29 Tactical Retreats 203 | . 1 1 . . 6 6 3 4 15 . 5 1 4 7 3 . 8 1 10 . 2 1 20 . 9 6 13 7 . . 9 9 3 7 4 21 2 15 Traps | -11 -10 -10 -10 -9 -8 -8 -8 -8 -7 -7 -7 -7 -7 -7 -6 -6 -6 -6 -5 -5 -5 -5 -4 -4 -4 -4 -4 -4 -4 -4 -4 -3 -3 -2 -2 -2 -2 -1 ------- Run | Scr Mat Min Exi Min Mat Gar Mat Gar Fac Was Fac Gar Fac Gar Fac Was Fac Gar Fac Was Fac Gar Fac Was Fac Gar Fac Ext Cet Arc Hub Res Tes Res Qua Sec Gar Acc Traps Triggered 53 | . 1 . . . 2 4 . 3 2 . 1 1 . . 4 . 3 6 2 . . . 4 . 1 3 1 2 . . . 3 . 1 . 1 3 5 Indirectly 4 | . . . . . . . . . . . . . . . . . . . . . . . . . . 1 . . . . . . . . . . . 3 Trap Hack Attempts 95 | . . . . . . . . . . . . . . . . . . . . . . . 27 . 17 9 33 . . . 7 . . 2 . . . . Triggered 1 | . . . . . . . . . . . . . . . . . . . . . . . . . . . 1 . . . . . . . . . . . Disarmed 14 | . . . . . . . . . . . . . . . . . 6 . . . . . . . 4 1 1 . . . 1 . . 1 . . . . Reprogrammed 29 | . . . . . . . . . . . . . . . . . . . 6 . . . 4 . 7 4 3 . . . 1 . 4 . . . . . Reused 3 | . . . . . . . . . . . . . . . . . . . . . . . . . 1 . . . . . 1 . 1 . . . . . Traps Extracted . | . . . . . . . . . . . . . . . . . . . . . . . . . . . . . . . . . . . . . . . Installed . | . . . . . . . . . . . . . . . . . . . . . . . . . . . . . . . . . . . . . . . Triggered 4 | . . . . . . . 1 . . . . . . . . . . . . . . . . . 1 . . . . . 1 . 1 . . . . . Machines | -11 -10 -10 -10 -9 -8 -8 -8 -8 -7 -7 -7 -7 -7 -7 -6 -6 -6 -6 -5 -5 -5 -5 -4 -4 -4 -4 -4 -4 -4 -4 -4 -3 -3 -2 -2 -2 -2 -1 ---------- Run | Scr Mat Min Exi Min Mat Gar Mat Gar Fac Was Fac Gar Fac Gar Fac Was Fac Gar Fac Was Fac Gar Fac Was Fac Gar Fac Ext Cet Arc Hub Res Tes Res Qua Sec Gar Acc Machines Disabled 122 | . 1 2 . . 3 1 1 1 1 . 2 . . 3 1 . 1 3 . . . 3 4 . 1 9 2 4 7 3 29 . 8 2 7 16 2 5 Max in Single Turn 14 | . 1 1 . . 1 1 1 1 1 . 2 . . 1 1 . 1 1 . . . 1 2 . 1 2 1 2 3 1 14 . 1 1 1 3 1 2 Garrison Access 31 | . . . . . . . . . 4 . 1 . 2 . 3 . 1 . 2 . 1 . 1 . 3 . 3 . . . 1 3 . 4 1 . . 1 Garrison Relay 10 | . . . . . . 1 . . . . . . . 2 . . . 3 . . . 1 . . . 2 . . . . . . . . . . 1 . Phase Generator 1 | . . . . . . . . . . . . . . . . . . . . . . . . . . 1 . . . . . . . . . . . . Network Hub 4 | . . . . . . . . . . . . . . . . . . . . . . . . . . . . . . . 4 . . . . . . . Machines Sabotaged . | . . . . . . . . . . . . . . . . . . . . . . . . . . . . . . . . . . . . . . . Garrisons Compromised . | . . . . . . . . . . . . . . . . . . . . . . . . . . . . . . . . . . . . . . . Overloaded Fab Kills . | . . . . . . . . . . . . . . . . . . . . . . . . . . . . . . . . . . . . . . . Fab Network Shutdowns 13 | . . . . . . . . . 1 . 1 . 1 . 1 . 1 . 1 . 1 . 1 . 1 . 1 . . . . 1 1 1 . . . . Hacking | -11 -10 -10 -10 -9 -8 -8 -8 -8 -7 -7 -7 -7 -7 -7 -6 -6 -6 -6 -5 -5 -5 -5 -4 -4 -4 -4 -4 -4 -4 -4 -4 -3 -3 -2 -2 -2 -2 -1 --------- Run | Scr Mat Min Exi Min Mat Gar Mat Gar Fac Was Fac Gar Fac Gar Fac Was Fac Gar Fac Was Fac Gar Fac Was Fac Gar Fac Ext Cet Arc Hub Res Tes Res Qua Sec Gar Acc Machines Accessed 385 | . 6 . 2 . 7 . 5 . 26 . 26 . 27 . 27 . 21 . 27 . 12 . 19 . 33 . 24 11 4 . 12 21 16 18 14 21 . 6 Terminals 248 | . 5 . . . 5 . 4 . 17 . 16 . 17 . 17 . 9 . 18 . 6 . 13 . 20 . 14 11 4 . 11 10 11 9 10 17 . 4 Fabricators 32 | . . . . . . . . . 3 . 4 . 1 . 2 . 3 . 4 . 3 . 1 . 2 . 4 . . . . 2 2 1 . . . . Repair Stations 21 | . . . . . . . . . . . 2 . 1 . 2 . 1 . 1 . 1 . 2 . 2 . 2 . . . . 2 1 2 2 . . . Recycling Units 27 | . 1 . . . . . . . 1 . 2 . 4 . 2 . 5 . 2 . . . 2 . 4 . . . . . . 3 . 1 . . . . Scanalyzers 14 | . . . . . 1 . . . 1 . . . 1 . 1 . 1 . . . . . . . 1 . 1 . . . . 1 1 1 1 3 . . Garrison Access 41 | . . . . . 1 . 1 . 4 . 2 . 3 . 3 . 2 . 2 . 2 . 1 . 4 . 3 . . . 1 3 1 4 1 1 . 2 Total Hacks 1319 | . 25 . 9 . 14 . 14 . 62 . 79 . 79 . 69 . 60 . 88 . 48 . 65 . 99 . 94 35 20 . 39 98 81 86 61 80 . 14 Successful 894 | . 15 . 9 . 9 . 8 . 55 . 61 . 62 . 55 . 49 . 72 . 42 . 46 . 58 . 58 13 7 . 34 55 46 53 37 46 . 4 Failed 423 | . 10 . . . 5 . 6 . 7 . 17 . 17 . 14 . 11 . 16 . 5 . 19 . 41 . 36 22 13 . 5 43 35 33 24 34 . 10 Catastrophic 75 | . . . . . 1 . 1 . 2 . . . 3 . 4 . 1 . 2 . 1 . 3 . 10 . 4 6 3 . . 6 8 5 4 6 . 5 Database Lockouts 2 | . . . . . . . . . . . 1 . . . . . . . . . 1 . . . . . . . . . . . . . . . . . Manual 834 | . 23 . 1 . 11 . 13 . 31 . 34 . 48 . 43 . 30 . 61 . 31 . 39 . 61 . 49 30 20 . 34 50 60 55 45 55 . 10 Terminals 985 | . 23 . . . 11 . 13 . 40 . 54 . 65 . 48 . 34 . 69 . 33 . 49 . 76 . 66 35 20 . 38 56 62 61 51 71 . 10 Fabricators 121 | . . . . . . . . . 15 . 14 . 1 . 7 . 10 . 12 . 11 . 3 . 4 . 16 . . . . 17 9 2 . . . . Repair Stations 87 | . . . . . . . . . . . 6 . 2 . 6 . 6 . 2 . 2 . 9 . 7 . 7 . . . . 17 4 12 7 . . . Recycling Units 34 | . 2 . . . . . . . 1 . 2 . 4 . 2 . 7 . 3 . . . 3 . 5 . . . . . . 4 . 1 . . . . Scanalyzers 36 | . . . . . 2 . . . 1 . . . 4 . 3 . 1 . . . . . . . 3 . 2 . . . . 1 3 6 2 8 . . Garrison Access 47 | . . . . . 1 . 1 . 5 . 3 . 3 . 3 . 2 . 2 . 2 . 1 . 4 . 3 . . . 1 3 3 4 1 1 . 4 Terminal Hacks 364 | . 7 . 9 . 1 . 4 . 19 . 22 . 29 . 20 . 17 . 32 . 20 . 22 . 25 . 20 6 4 . 14 15 20 18 19 20 . 1 Record 13 | . . . 8 . . . . . 1 . . . . . . . 1 . . . . . . . . . . . . . . . . . 1 2 . . Part Schematic 35 | . 3 . . . . . . . 6 . 1 . 1 . 6 . 1 . 5 . 5 . 2 . 2 . . . . . . 1 1 1 . . . . Robot Analysis 5 | . . . . . . . . . . . 1 . 2 . 1 . . . . . . . . . . . 1 . . . . . . . . . . . Prototype ID Bank 6 | . . . . . . . . . . . 3 . 1 . . . . . . . 2 . . . . . . . . . . . . . . . . . Open Door 6 | . . . . . . . . . . . . . . . . . . . . . . . . . . . . 1 . . . . 1 . . 3 . 1 Branch Access Points 1 | . . . . . . . . . . . . . . . . . . . . . . . . . . . . . . . . 1 . . . . . . Emergency Access Points 1 | . . . . . . . . . . . . . . . . . . . . . . . . . . . . . . . . . . . . 1 . . Machine Index 8 | . . . . . . . . . . . 1 . . . . . . . . . 1 . . . 1 . 1 . . . 2 . . 1 1 . . . Terminal Index 19 | . 1 . . . . . 1 . 1 . 1 . 1 . 1 . 1 . 1 . 1 . 1 . 1 . 1 1 . . 1 1 1 1 1 1 . . Fabricator Index 12 | . . . . . . . . . . . 1 . 1 . 1 . 1 . 1 . 1 . 1 . 1 . 1 . . . . 1 1 1 . . . . Repair Station Index 1 | . . . . . . . . . . . . . . . . . . . 1 . . . . . . . . . . . . . . . . . . . Scanalyzer Index 2 | . . . . . . . . . . . . . . . . . 1 . . . . . . . . . . . . . . . . . . 1 . . Garrison Index 5 | . . . . . . . . . 1 . . . 1 . . . 1 . 1 . . . 1 . . . . . . . . . . . . . . . Unreport Threat 64 | . 1 . . . 1 . 1 . 3 . 3 . 3 . 4 . 2 . 5 . 3 . 5 . 5 . 5 2 4 . 1 5 4 2 3 2 . . Locate Traps 24 | . . . . . . . . . . . 1 . 3 . . . 3 . 5 . 1 . 2 . 3 . 2 1 . . . . 2 . . 1 . . Disarm Traps 3 | . . . . . . . . . . . . . . . . . 1 . 1 . . . . . 1 . . . . . . . . . . . . . Reprogram Traps 2 | . . . . . . . . . . . . . . . . . . . 1 . . . . . . . . . . . . . 1 . . . . . Dispatch Records 1 | . . . . . . . . . . . . . . . . . . . . . 1 . . . . . . . . . . . . . . . . . Assault Status 1 | . . . . . . . . . . . . . . . . . . . . . . . . . . . . . . . . . . . . 1 . . Recall Investigation 11 | . . . . . . . . . . . . . 3 . 2 . . . 2 . 1 . . . 1 . . . . . . . 1 . 1 . . . Recall Extermination 35 | . . . . . . . . . 1 . 1 . 2 . 2 . 1 . 2 . 1 . 4 . 4 . 2 . . . 1 2 2 3 4 3 . . Recall Reinforcements 6 | . 1 . . . . . . . . . . . . . . . 1 . . . . . . . . . . . . . . . 1 2 1 . . . Recall Assault 3 | . . . . . . . . . . . . . . . . . . . . . . . . . 1 . . . . . . . 1 1 . . . . Hauler Manifests 16 | . . . . . . . . . 1 . 1 . 2 . . . . . 1 . 1 . 2 . 1 . 2 . . . 1 1 1 . 1 1 . . Registered Prototypes 4 | . . . . . . . . . 1 . . . 1 . . . . . . . . . 1 . . . . . . . . . 1 . . . . . Zone Layout 79 | . 1 . . . . . 2 . 4 . 8 . 8 . 3 . 3 . 6 . 2 . 3 . 4 . 5 1 . . 8 3 2 6 6 4 . . EX-Prototype ID Bank 1 | . . . 1 . . . . . . . . . . . . . . . . . . . . . . . . . . . . . . . . . . . Fabricator Hacks 87 | . . . . . . . . . 12 . 10 . 1 . 5 . 6 . 10 . 8 . 2 . 4 . 12 . . . . 10 5 2 . . . . Network Status 1 | . . . . . . . . . 1 . . . . . . . . . . . . . . . . . . . . . . . . . . . . . Load Schematic 40 | . . . . . . . . . 4 . 5 . . . 2 . 3 . 6 . 4 . 1 . 2 . 6 . . . . 4 2 1 . . . . Build 46 | . . . . . . . . . 7 . 5 . 1 . 3 . 3 . 4 . 4 . 1 . 2 . 6 . . . . 6 3 1 . . . . Repair Station Hacks 71 | . . . . . . . . . . . 6 . 2 . 6 . 6 . 2 . 2 . 8 . 6 . 6 . . . . 11 2 10 4 . . . Scan Component 36 | . . . . . . . . . . . 3 . 1 . 3 . 3 . 1 . 1 . 4 . 3 . 3 . . . . 6 1 5 2 . . . Repair 35 | . . . . . . . . . . . 3 . 1 . 3 . 3 . 1 . 1 . 4 . 3 . 3 . . . . 5 1 5 2 . . . Recycling Unit Hacks 28 | . . . . . . . . . 1 . 2 . 4 . 2 . 6 . 2 . . . 2 . 5 . . . . . . 3 . 1 . . . . Retrieve Components 28 | . . . . . . . . . 1 . 2 . 4 . 2 . 6 . 2 . . . 2 . 5 . . . . . . 3 . 1 . . . . Scanalyzer 32 | . . . . . 2 . . . 1 . . . 3 . 3 . 1 . . . . . . . 3 . 2 . . . . 1 2 4 2 8 . . Insert Component 26 | . . . . . 1 . . . 1 . . . 2 . 2 . 1 . . . . . . . 2 . 1 . . . . 1 2 3 2 8 . . Analyze 6 | . . . . . 1 . . . . . . . 1 . 1 . . . . . . . . . 1 . 1 . . . . . . 1 . . . . Garrison Access Hacks 42 | . . . . . 1 . 1 . 5 . 3 . 3 . 3 . 2 . 2 . 2 . 1 . 4 . 3 . . . 1 3 . 4 1 1 . 2 Unlock Access 8 | . . . . . 1 . 1 . . . 1 . 1 . . . 1 . . . 1 . . . 1 . . . . . . . . . . 1 . . Seal Access 31 | . . . . . . . . . 4 . 1 . 2 . 3 . 1 . 2 . 1 . 1 . 3 . 3 . . . 1 3 . 4 1 . . 1 Coupler Status 3 | . . . . . . . . . 1 . 1 . . . . . . . . . . . . . . . . . . . . . . . . . . 1 Unauthorized Hacks 611 | . 19 . . . 12 . 9 . 34 . 38 . 43 . 37 . 22 . 50 . 20 . 25 . 26 . 33 24 7 . 40 25 41 34 25 42 . 5 Terminals 248 | . 8 . . . 5 . 3 . 15 . 16 . 20 . 14 . 10 . 21 . 7 . 10 . 11 . 12 7 3 . 19 11 14 14 11 17 . . Track 98 | . 3 . . . 1 . 1 . 7 . 8 . 8 . 3 . 2 . 10 . 2 . 4 . 3 . 7 1 . . 8 4 5 6 6 9 . . Assimilate 59 | . 1 . . . . . . . 4 . 4 . 8 . 6 . 2 . 6 . 2 . 1 . 4 . 1 1 . . 3 3 5 4 2 2 . . Botnet 68 | . 3 . . . 3 . 1 . 3 . 3 . 4 . 4 . 5 . 4 . 2 . 4 . 3 . 3 4 3 . 4 3 3 2 3 4 . . Detonate 4 | . . . . . . . . . . . . . . . . . . . . . . . . . . . . . . . 4 . . . . . . . Disrupt 1 | . . . . . . . . . . . . . . . . . . . . . . . . . . . . . . . . . . 1 . . . . Operators 18 | . 1 . . . 1 . 1 . 1 . 1 . . . 1 . 1 . 1 . 1 . 1 . 1 . 1 1 . . . 1 1 1 . 2 . . Fabricators 18 | . . . . . . . . . 2 . 2 . . . 2 . 1 . 2 . 3 . 1 . . . 3 . . . . 1 1 . . . . . Report 15 | . . . . . . . . . 2 . 2 . . . 1 . 1 . 2 . 2 . 1 . . . 2 . . . . 1 1 . . . . . Haulers 3 | . . . . . . . . . . . . . . . 1 . . . . . 1 . . . . . 1 . . . . . . . . . . . Repair Stations . | . . . . . . . . . . . . . . . . . . . . . . . . . . . . . . . . . . . . . . . Recycling Units 1 | . . . . . . . . . . . . . . . . . . . 1 . . . . . . . . . . . . . . . . . . . Reject 1 | . . . . . . . . . . . . . . . . . . . 1 . . . . . . . . . . . . . . . . . . . Scanalyzers 1 | . . . . . . . . . . . . . . . . . . . . . . . . . . . . . . . . . 1 . . . . . Researchers 1 | . . . . . . . . . . . . . . . . . . . . . . . . . . . . . . . . . 1 . . . . . Garrison Access 2 | . . . . . . . . . . . . . . . . . . . . . . . . . . . . . . . . . 1 . . . . 1 Reprogram 2 | . . . . . . . . . . . . . . . . . . . . . . . . . . . . . . . . . 1 . . . . 1 Data Cores Recovered . | . . . . . . . . . . . . . . . . . . . . . . . . . . . . . . . . . . . . . . . Used . | . . . . . . . . . . . . . . . . . . . . . . . . . . . . . . . . . . . . . . . Hacking Detections 247 | . 6 . . . 4 . 4 . 16 . 19 . 17 . 17 . 14 . 18 . 9 . 14 . 21 . 18 10 3 . 9 11 7 9 7 11 . 3 Full Trace Events 22 | . . . . . . . 1 . . . . . 4 . 2 . . . 3 . . . 2 . 3 . 1 1 . . 1 1 1 . 1 1 . . Feedback Events 7 | . . . . . . . . . . . . . 2 . 1 . . . 1 . . . 1 . 1 . 1 . . . . . . . . . . . Corruption 1 | . . . . . . . . . . . . . 1 . . . . . . . . . . . . . . . . . . . . . . . . . Hackware Fried 6 | . . . . . . . . . . . . . 1 . 1 . . . 1 . . . 1 . 1 . 1 . . . . . . . . . . . Feedback Blocked . | . . . . . . . . . . . . . . . . . . . . . . . . . . . . . . . . . . . . . . . Robot Schematics Acquired . | . . . . . . . . . . . . . . . . . . . . . . . . . . . . . . . . . . . . . . . Robots Built . | . . . . . . . . . . . . . . . . . . . . . . . . . . . . . . . . . . . . . . . Matter 153 | . . . . . . . . . . . . . . . 153 . . . . . . . . . . . . . . . . . . . . . . . Time 81 | . . . . . . . . . . . . . . . 81 . . . . . . . . . . . . . . . . . . . . . . . Total Robot Build Rating . | . . . . . . . . . . . . . . . . . . . . . . . . . . . . . . . . . . . . . . . Part Schematics Acquired 40 | . 3 . . . 1 . . . 6 . 1 . 2 . 7 . 1 . 5 . 5 . 2 . 3 . . . . . . 1 1 2 . . . . Parts Built 35 | . . . . . . . . . 5 . 3 . 1 . 3 . 2 . 3 . 3 . 1 . 2 . 4 . . . . 4 3 1 . . . . Matter 9647 | . . . . . . . . . 888 . 749 . 168 . 446 . 636 . 819 . 837 . 384 . 636 . 1177 . . . . 1470 1053 384 . . . . Time 3203 | . . . . . . . . . 332 . 339 . 84 . 223 . 140 . 210 . 218 . 204 . 169 . 543 . . . . 360 279 102 . . . . Total Part Build Rating 222 | . . . . . . . . . 28 . 15 . 4 . 20 . 12 . 21 . 18 . 8 . 12 . 25 . . . . 30 21 8 . . . . Parts Repaired 35 | . . . . . . . . . . . 3 . 1 . 3 . 3 . 1 . 1 . 4 . 3 . 3 . . . . 5 1 5 2 . . . Time 1567 | . . . . . . . . . . . 55 . 12 . 152 . 189 . 12 . 35 . 244 . 127 . 93 . . . . 167 33 403 45 . . . Parts Recycled . | . . . . . . . . . . . . . . . . . . . . . . . . . . . . . . . . . . . . . . . Recycled Matter . | . . . . . . . . . . . . . . . . . . . . . . . . . . . . . . . . . . . . . . . Retrieved Matter . | . . . . . . . . . . . . . . . . . . . . . . . . . . . . . . . . . . . . . . . Retrieved Components 64 | . . . . . . . . . . . 3 . 15 . 2 . 12 . 3 . . . 8 . 10 . . . . . . 11 . . . . . . Parts Scanalyzed 6 | . . . . . 1 . . . . . . . 1 . 1 . . . . . . . . . 1 . 1 . . . . . . 1 . . . . Part Schematics Acquired 5 | . . . . . 1 . . . . . . . 1 . 1 . . . . . . . . . 1 . . . . . . . . 1 . . . . Parts Damaged . | . . . . . . . . . . . . . . . . . . . . . . . . . . . . . . . . . . . . . . . Bothacking | -11 -10 -10 -10 -9 -8 -8 -8 -8 -7 -7 -7 -7 -7 -7 -6 -6 -6 -6 -5 -5 -5 -5 -4 -4 -4 -4 -4 -4 -4 -4 -4 -3 -3 -2 -2 -2 -2 -1 ------------ Run | Scr Mat Min Exi Min Mat Gar Mat Gar Fac Was Fac Gar Fac Gar Fac Was Fac Gar Fac Was Fac Gar Fac Was Fac Gar Fac Ext Cet Arc Hub Res Tes Res Qua Sec Gar Acc Used RIF Installer 8 | . . . . . . 1 . 1 . . . 1 . 1 . . . 1 . . . 1 . . . 1 . . . . . . . . . . 1 . Coupler Efficiency 2 | . . . . . . . . . . . . . . 1 . . . . . . . . . . . . . . . . . . . . . . 1 . Robot Detection 1 | . . . . . . . . . . . . . . . . . . 1 . . . . . . . . . . . . . . . . . . . . Patrol Navigation 1 | . . . . . . . . . . . . 1 . . . . . . . . . . . . . . . . . . . . . . . . . . Alert ID Control 1 | . . . . . . . . . . . . . . . . . . . . . . 1 . . . . . . . . . . . . . . . . Structural Interface 1 | . . . . . . . . 1 . . . . . . . . . . . . . . . . . . . . . . . . . . . . . . Program Shield 1 | . . . . . . . . . . . . . . . . . . . . . . . . . . 1 . . . . . . . . . . . . Robots Hacked 30 | . . . 4 . . . . . 4 . . . 1 5 2 . 1 1 3 . . . . . 2 2 3 1 . . . 1 . . . . . . Non-combat 19 | . . . 3 . . . . . 4 . . . 1 . 2 . . . 3 . . . . . 2 . 3 . . . . 1 . . . . . . Combat 11 | . . . 1 . . . . . . . . . . 5 . . 1 1 . . . . . . . 2 . 1 . . . . . . . . . . Robot Hacks Applied 31 | . . . 5 . . . . . 4 . . . 1 5 2 . 1 1 3 . . . . . 2 2 3 1 . . . 1 . . . . . . parse_system 7 | . . . 5 . . . . . . . . . . . 1 . . . 1 . . . . . . . . . . . . . . . . . . . find_chute 2 | . . . . . . . . . . . . . . . . . . . 2 . . . . . . . . . . . . . . . . . . . ignore_repairs 6 | . . . . . . . . . 1 . . . 1 . . . . . . . . . . . 2 . 1 . . . . 1 . . . . . . find_fabricator 3 | . . . . . . . . . 3 . . . . . . . . . . . . . . . . . . . . . . . . . . . . . drop_inventory 2 | . . . . . . . . . . . . . . . . . . . . . . . . . . . 2 . . . . . . . . . . . find_station 1 | . . . . . . . . . . . . . . . 1 . . . . . . . . . . . . . . . . . . . . . . . scatter_targeting 3 | . . . . . . . . . . . . . . 3 . . . . . . . . . . . . . . . . . . . . . . . . reboot_system 1 | . . . . . . . . . . . . . . . . . 1 . . . . . . . . . . . . . . . . . . . . . overwrite_iff 1 | . . . . . . . . . . . . . . . . . . . . . . . . . . 1 . . . . . . . . . . . . formatsys_high 5 | . . . . . . . . . . . . . . 2 . . . 1 . . . . . . . 1 . 1 . . . . . . . . . . Relay Couplers Released 39 | . . . . . . 4 . . . . . . . 6 . . . 12 . . . 3 . . . 9 . . . . . . . . . . 5 . Machine Destruction 39 | . . . . . . 4 . . . . . . . 6 . . . 12 . . . 3 . . . 9 . . . . . . . . . . 5 . Attached 10 | . . . . . . . . . 1 . . . . 2 . . . 1 . . . . . . . 1 1 1 . . . . . . . . . 3 Robots Rewired 20 | . . . . . . . . . 1 . . . . . . . . . . . . 6 . . . . . 13 . . . . . . . . . . Allies Hacked 3 | . . . . . . . . . . . . . . . . . . . . . . . . . . . . 1 . . . . 2 . . . . . Hacks Repelled . | . . . . . . . . . . . . . . . . . . . . . . . . . . . . . . . . . . . . . . . Allies | -11 -10 -10 -10 -9 -8 -8 -8 -8 -7 -7 -7 -7 -7 -7 -6 -6 -6 -6 -5 -5 -5 -5 -4 -4 -4 -4 -4 -4 -4 -4 -4 -3 -3 -2 -2 -2 -2 -1 -------- Run | Scr Mat Min Exi Min Mat Gar Mat Gar Fac Was Fac Gar Fac Gar Fac Was Fac Gar Fac Was Fac Gar Fac Was Fac Gar Fac Ext Cet Arc Hub Res Tes Res Qua Sec Gar Acc Total Allies 106 | . 1 3 . . . . . . 5 20 4 . 5 2 5 . . 1 5 . 2 6 1 1 4 2 1 16 . . 2 3 6 4 2 1 . 4 Largest Group 22 | . 1 4 2 2 1 . . . 3 22 2 1 4 5 5 . . 1 3 2 2 4 1 1 2 3 2 9 . . 2 2 4 3 2 1 . 3 Highest-Rated Group 585 | . 10 50 24 24 16 . . . 78 585 40 26 88 123 98 . . 32 62 52 52 164 10 46 36 115 20 474 . . 20 54 146 96 36 26 . 174 Highest-Rated Ally 156 | . 10 16 16 16 16 . . . 30 33 26 26 26 29 26 . . 32 26 26 26 46 10 46 26 58 10 156 . . 10 44 46 44 26 26 . 58 Total Orders 212 | . 2 . . . . . . . 15 . 2 3 19 11 16 . . 1 28 . 2 11 3 . 11 14 15 10 . . . 9 8 26 2 1 . 3 STAY 37 | . . . . . . . . . 2 . 1 . 7 2 6 . . 1 2 . . 2 . . 3 2 4 1 . . . . 1 3 . . . . GOTO 80 | . 1 . . . . . . . 5 . . 2 2 4 3 . . . 12 . 1 4 2 . 3 6 3 4 . . . 7 5 12 2 1 . 1 ROAM 1 | . . . . . . . . . . . . . . . . . . . . . . 1 . . . . . . . . . . . . . . . . FOLLOW 92 | . 1 . . . . . . . 8 . 1 1 10 5 7 . . . 14 . 1 4 1 . 5 6 8 5 . . . 2 2 11 . . . . EXPLORE 2 | . . . . . . . . . . . . . . . . . . . . . . . . . . . . . . . . . . . . . . 2 Ally Attacks 308 | . . 26 . 8 . . . . 4 . . . . 6 . . . 1 . . . 33 . . . 10 . 206 . . . . 6 . . . . 8 Total Damage 8579 | . . 310 . 80 . . . . 449 . . . . 74 . . . 44 . . . 829 . . . 317 . 5999 . . . . 201 . . . . 276 Kills 59 | . . 7 . 2 . . . . 4 . . . . . . . . . . . . 6 . . . 2 . 37 . . . . 1 . . . . . Allies Corrupted 1 | . . . . . . . . . . . . . . . . . . . . . . . . . . . . . . . . . 1 . . . . . Allies Melted 1 | . . . . . . . . . . . . . . 1 . . . . . . . . . . . . . . . . . . . . . . . . Intel | -11 -10 -10 -10 -9 -8 -8 -8 -8 -7 -7 -7 -7 -7 -7 -6 -6 -6 -6 -5 -5 -5 -5 -4 -4 -4 -4 -4 -4 -4 -4 -4 -3 -3 -2 -2 -2 -2 -1 ------- Run | Scr Mat Min Exi Min Mat Gar Mat Gar Fac Was Fac Gar Fac Gar Fac Was Fac Gar Fac Was Fac Gar Fac Was Fac Gar Fac Ext Cet Arc Hub Res Tes Res Qua Sec Gar Acc Robot Analysis Total 5 | . . . . . . . . . . . 1 . 2 . 1 . . . . . . . . . . . 1 . . . . . . . . . . . Derelict Logs Recovered 2 | . . 2 . . . . . . . . . . . . . . . . . . . . . . . . . . . . . . . . . . . . Drone Launches 4 | . . . . . . . . . . . . . . . . . . . . . . . . . . . . . . . . . . 2 . . . 2 Drone Recoveries . | . . . . . . . . . . . . . . . . . . . . . . . . . . . . . . . . . . . . . . . Exploration | -11 -10 -10 -10 -9 -8 -8 -8 -8 -7 -7 -7 -7 -7 -7 -6 -6 -6 -6 -5 -5 -5 -5 -4 -4 -4 -4 -4 -4 -4 -4 -4 -3 -3 -2 -2 -2 -2 -1 ------------- Run | Scr Mat Min Exi Min Mat Gar Mat Gar Fac Was Fac Gar Fac Gar Fac Was Fac Gar Fac Was Fac Gar Fac Was Fac Gar Fac Ext Cet Arc Hub Res Tes Res Qua Sec Gar Acc Turns Passed 51536 | 80 2206 665 372 94 3239 1157 1598 400 2385 78 1771 194 2417 299 2579 35 1630 494 2651 49 675 453 2398 31 2700 1281 2616 1614 554 550 910 1963 2067 2324 1977 2195 751 2084 Spaces Moved 74270 | 57 1095 520 340 39 1379 510 537 152 4951 241 3659 339 4881 566 4672 85 2957 942 5126 164 1495 848 3934 105 5522 1638 4661 2178 272 284 1557 4157 3498 3192 2635 3314 487 1281 Core 297 | 3 . . . . . . . . . . . . . . . . . . . . . . 28 . 1 4 6 14 8 . . . . 3 150 12 19 49 Treads 4173 | . 886 . . 39 1379 510 380 114 . . . . . . . . . . . . . . . . . . . . 246 68 . . . . . . . 551 Legs . | . . . . . . . . . . . . . . . . . . . . . . . . . . . . . . . . . . . . . . . Wheels 1318 | 54 209 520 340 . . . 157 38 . . . . . . . . . . . . . . . . . . . . . . . . . . . . . . Hover 72 | . . . . . . . . . . . . . . . . . . . . . . . . . . . 19 . . 53 . . . . . . . . Flight 68410 | . . . . . . . . . 4951 241 3659 339 4881 566 4672 85 2957 942 5126 164 1495 848 3906 105 5521 1634 4636 2164 18 163 1557 4157 3498 3189 2485 3302 468 681 Fastest Speed 17 | 50 90 100 100 180 180 172 160 160 29 29 29 29 29 29 29 34 29 29 27 27 27 27 27 27 27 27 25 24 30 30 23 17 17 17 23 20 30 28 Average Speed 39 | 89 153 105 100 180 180 184 169 205 29 29 29 29 29 29 29 34 32 29 27 27 27 27 29 27 27 34 30 33 154 105 28 27 29 24 30 27 83 86 Slowest Speed 1150 | 100 180 110 100 180 220 200 220 220 29 29 29 29 29 94 34 34 98 29 27 27 27 27 200 27 250 250 280 200 160 600 100 29 92 200 200 150 450 1150 Overloaded Moves 996 | . . . . . . . . . . . . . . . . . . . . . . . . . . . 90 21 . . 464 108 81 187 . 45 . . Propulsion Burnouts 2 | . . . . . . . . . . . . . . . . . . . . . . . . . . . . . . . . . . . . 2 . . Robots Hopped 237 | . . . . . . . . . 31 . 13 . 15 . 9 . 3 . 18 . 2 . 28 . 24 . 2 8 . . 17 13 10 26 3 13 . 2 Cave-ins Triggered . | . . . . . . . . . . . . . . . . . . . . . . . . . . . . . . . . . . . . . . . Exploration Rate (%) 66 | 4 95 85 70 10 84 44 50 36 76 86 67 49 75 41 80 62 55 86 67 74 26 76 65 92 73 79 82 93 73 88 89 51 96 62 93 89 47 37 Regions Visited 38 Branch Regions 10 Pre-discovered Areas 1 | . . 1 . . . . . . . . . . . . . . . . . . . . . . . . . . . . . . . . . . . . Known Exits Taken 17 | . . . . . 1 . 1 . . . 1 . 1 . . . 1 . . . 1 . . . 1 . 1 1 1 1 1 1 1 1 1 1 . . Unknown Exits Taken 5 | 1 1 1 1 1 . . . . . . . . . . . . . . . . . . . . . . . . . . . . . . . . . . Scrap Searched 3 | . . 3 . . . . . . . . . . . . . . . . . . . . . . . . . . . . . . . . . . . . Spaces Dug 1953 | . . . . . 33 . 50 . 124 . 76 3 107 55 78 . 56 12 123 . 24 . 113 . 142 2 118 7 . . 49 103 33 106 49 119 1 370 Terrain Destroyed 5606 | . 6 . . . 49 32 55 4 146 . 91 87 123 150 78 . 135 363 123 . 24 246 161 . 142 462 275 150 . 11 1160 103 58 211 149 181 266 565 Melee 1524 | . . . . . 33 . 50 . 124 . 76 3 107 3 78 . 56 3 123 . 24 . 113 . 142 2 118 7 . . 49 103 30 105 44 113 . 18 Projectile 87 | . . . . . 16 . 2 . . . . . . . . . . . . . . . . . . . . . . 11 15 . 4 1 5 8 12 13 AOE 3995 | . 6 . . . . 32 3 4 22 . 15 84 16 147 . . 79 360 . . . 246 48 . . 460 157 143 . . 1096 . 24 105 100 60 254 534 Actions | -11 -10 -10 -10 -9 -8 -8 -8 -8 -7 -7 -7 -7 -7 -7 -6 -6 -6 -6 -5 -5 -5 -5 -4 -4 -4 -4 -4 -4 -4 -4 -4 -3 -3 -2 -2 -2 -2 -1 --------- Run | Scr Mat Min Exi Min Mat Gar Mat Gar Fac Was Fac Gar Fac Gar Fac Was Fac Gar Fac Was Fac Gar Fac Was Fac Gar Fac Ext Cet Arc Hub Res Tes Res Qua Sec Gar Acc Total 91628 | 72 1474 588 366 50 1846 627 1035 205 5610 248 4217 405 5678 657 5676 90 3481 1102 6111 168 1697 1036 4940 106 6410 2292 5590 2972 378 466 1873 4693 4403 4445 3642 4343 720 1916 Wait 11516 | . 261 22 16 2 198 12 355 17 447 5 449 23 670 46 834 6 361 4 789 3 150 145 795 1 632 395 581 627 36 93 198 267 650 973 654 614 24 161 Move 73790 | 56 1094 519 339 38 1379 508 537 150 4892 240 3635 338 4851 565 4655 84 2951 941 5090 163 1490 846 3880 104 5477 1637 4656 2162 271 283 1526 4132 3477 3143 2628 3291 485 1277 Hop 212 | . . . . . . . . . 28 . 11 . 15 . 8 . 3 . 18 . 2 . 26 . 21 . 2 7 . . 13 11 10 22 3 10 . 2 Pick Up 413 | 4 15 10 2 1 26 5 9 . 8 1 6 . 5 1 8 . 10 4 10 1 1 1 12 1 15 21 17 8 4 7 2 27 29 17 60 31 11 23 Fast Attach 276 | 7 . 1 . . 9 . 3 . 3 . 2 . . . 5 . 7 . 5 . 4 . 14 . 6 9 17 3 12 8 4 14 27 13 46 21 12 24 Attach 308 | . 7 1 . 1 4 5 3 . 14 1 2 . 1 . 2 . 6 1 4 . 1 1 7 . 4 15 16 7 6 7 8 18 17 14 22 41 18 54 Detach 209 | . . . . . . . . . 5 1 2 . . . 2 . 5 1 1 . . . 7 . 2 18 15 8 7 6 6 9 11 10 21 30 13 29 Swap 535 | . 8 3 1 2 23 6 12 4 7 . 11 8 7 11 9 . 21 25 6 . 7 12 16 . 26 38 33 23 6 6 12 18 34 34 26 32 10 38 Drop 476 | . 7 6 2 . 28 . 4 1 28 . 6 . 6 . 9 . 14 4 9 1 2 1 11 . 17 26 25 6 9 16 3 15 53 25 61 47 10 24 Fire 1105 | 5 82 25 . 6 138 83 32 21 4 . 5 7 4 25 4 . 12 30 4 . . 28 6 . . 67 18 38 27 21 18 17 14 11 13 17 83 240 Melee 2361 | . . . 6 . 40 . 80 . 156 . 88 11 119 9 122 . 77 11 175 . 40 2 134 . 193 21 177 47 . 19 76 165 77 162 108 209 . 37 Ram 5 | . . 1 . . . . . . . . . . . . . . . . . . . . . . . . . . . . . . 4 . . . . . Kick . | . . . . . . . . . . . . . . . . . . . . . . . . . . . . . . . . . . . . . . . Crush 1 | . . . . . 1 . . . . . . . . . . . . . . . . . . . . . . . . . . . . . . . . . Escape Stasis 324 | . . . . . . 8 . 12 18 . . 18 . . 18 . 14 81 . . . . 5 . . 36 . 36 . . . . . 18 . . 54 6 Rewire . | . . . . . . . . . . . . . . . . . . . . . . . . . . . . . . . . . . . . . . . Trap 95 | . . . . . . . . . . . . . . . . . . . . . . . 27 . 17 9 33 . . . 7 . . 2 . . . . Miscellaneous 2 | . . . . . . . . . . . . . . . . . . . . . . . . . . . . . . . . . . 1 . . . 1 Route ------- -11/Scrapyard -10/Materials (discovered 5 exits: *Mat x3 / [*Min x2]) -10/Mines (discovered 3 exits: *Mat x2 / *Exi) -10/Exiles -9/Mines -8/Materials (discovered 3 exits: *Fac x2 / Gar) -8/Garrison (discovered 2 exits: *Mat x2) -8/Materials -8/Garrison -7/Factory (discovered 5 exits: *Fac x3 / *Low x2) -7/Waste -7/Factory (discovered 4 exits: *Fac x2 / *Low / Gar) -7/Garrison -7/Factory (discovered 3 exits: *Fac x2 / Gar) -7/Garrison -6/Factory (discovered 2 exits: *Fac / *Low) -6/Waste -6/Factory (discovered 4 exits: *Fac x2 / *Low / Gar) -6/Garrison (discovered 3 exits: *Fac x3) -5/Factory (discovered 2 exits: *Fac x2) -5/Waste -5/Factory -5/Garrison (discovered 2 exits: *Fac x2) -4/Factory (discovered 3 exits: *Res x2 / *Upp) -4/Waste -4/Factory (discovered 6 exits: *Res x3 / *Upp / *Ext / Gar) -4/Garrison (discovered 2 exits: *Fac x2) -4/Factory (discovered 3 exits: *Res x2 / *Ext) -4/Extension (discovered 2 exits: *Res / *Cet) -4/Cetus (discovered 2 exits: *Res / *Arc) -4/Archives (discovered 3 exits: *Res / *Hub x2) -4/Hub_04(d) (discovered 4 exits: *Res x4) -3/Research (discovered 3 exits: *Res / *Tes x2) -3/Testing -2/Research (discovered 3 exits: *Acc / *Qua x2) -2/Quarantine (discovered 2 exits: *Acc / *Sec) -2/Section 7 (discovered 2 exits: *Acc / Gar) -2/Garrison -1/Access (discovered 1 exit: [*Sur]) History --------- Turn | Location | Event 24 | -11/Scrapyard | Discovered new exit (range 16) 81 | -11/Scrapyard | Entered Materials 315 | -10/Materials | Build established: Mutant 335 | -10/Materials | Discovered new exit (range 16) 432 | -10/Materials | Discovered new exit (range 21) 441 | -10/Materials | Discovered new exit (range 11) 728 | -10/Materials | Discovered new exit (range 16) 1184 | -10/Materials | Discovered new exit (range 7) 2116 | -10/Materials | Lost 3 parts (1p1n1w) 2287 | -10/Materials | Entered Mines 2287 | -10/Mines | Accompanied by 1 ally 2303 | -10/Mines | Deemed a non-threat by the Exiles lab entrance 2304 | -10/Mines | Discovered new exit (range 5) 2326 | -10/Mines | Identified exit to Materials 2331 | -10/Mines | Met a Derelict bent on vengeance 2487 | -10/Mines | Assisted by bots powering up and referring to "LRC-V3" 2519 | -10/Mines | Found a hidden stash of uninstalled traps 2646 | -10/Mines | Learned location of Mines (-9) 2720 | -10/Mines | Discovered exit to Materials (range 4) 2952 | -10/Mines | Entered Exiles 2952 | -10/Exiles | Accompanied by 2 allies 2979 | -10/Exiles | Met 8R-AWN 3025 | -10/Exiles | Met EX-HEX 3105 | -10/Exiles | Met EX-DEC 3142 | -10/Exiles | Met EX-BIN 3166 | -10/Exiles | Aligned with FarCom system 3167 | -10/Exiles | Given EX-Vault access code 3190 | -10/Exiles | Opened EX-Vault 3198 | -10/Exiles | Found Latent Energy Streamer 3202 | -10/Exiles | Found PSU Rigger 3222 | -10/Exiles | Warned to stay clear of 0b10 Research branches 3234 | -10/Exiles | Exiles lab attacked by MAIN.C 3299 | -10/Exiles | Discovered new exit (range 14) 3324 | -10/Exiles | Stole two prototypes: PSU Rigger, Latent Energy Streamer 3324 | -10/Exiles | Entered Mines 3324 | -9/Mines | Accompanied by 2 allies 3340 | -9/Mines | Discovered new exit (range 14) 3418 | -9/Mines | Entered Materials 3418 | -8/Materials | Accompanied by 1 ally 3418 | -8/Materials | Evolved 4 slots: Utility x4 4635 | -8/Materials | Garrison activated, responded to threat 5418 | -8/Materials | Discovered new exit (range 3) 5679 | -8/Materials | Build established: Hauler-Mutant 6090 | -8/Materials | Discovered new exit (range 8) 6657 | -8/Materials | Identified exit to Garrison 6657 | -8/Materials | Entered Garrison 6934 | -8/Garrison | Triggered checkpoint 6954 | -8/Garrison | Triggered checkpoint 7002 | -8/Garrison | Core integrity fell below 50% 7048 | -8/Garrison | Lost 3 parts (1p1n1w) 7177 | -8/Garrison | Discovered new exit (range 15) 7390 | -8/Garrison | Discovered new exit (range 15) 7506 | -8/Garrison | Installed Relay Interface Framework 7568 | -8/Garrison | Triggered checkpoint 7607 | -8/Garrison | Garrison Relay disabled 7814 | -8/Garrison | Entered Materials 9412 | -8/Materials | Identified exit to Garrison 9412 | -8/Materials | Entered Garrison 9483 | -8/Garrison | Triggered checkpoint 9492 | -8/Garrison | Triggered checkpoint 9552 | -8/Garrison | Triggered checkpoint 9640 | -8/Garrison | Core integrity fell below 20% 9757 | -8/Garrison | Discovered new exit (range 15) 9801 | -8/Garrison | Expanded RIF knowledge: Structural Interface 9812 | -8/Garrison | Entered Factory 9812 | -7/Factory | Evolved 2 slots: Propulsion x1, Utility x1 9814 | -7/Factory | FarCom data flow suspended 10084 | -7/Factory | Discovered new exit (range 8) 10104 | -7/Factory | Discovered new exit (range 15) 10128 | -7/Factory | Build established: Hacker-Sprinter 10497 | -7/Factory | Discovered new exit (range 5) 10498 | -7/Factory | Identified exit to Lower Caves 10657 | -7/Factory | Discovered new exit (range 16) 10674 | -7/Factory | Identified exit to Factory 11206 | -7/Factory | Fabricated Adv. Hacking Suite? 11404 | -7/Factory | Fabricated Imp. Cesium-ion Thruster? 11534 | -7/Factory | Fabricated Adv. Hacking Suite? 11721 | -7/Factory | Discovered exit to Factory (range 16) 11942 | -7/Factory | Fabricated Mic. Fission Core (x2) 12027 | -7/Factory | Local fabrication network quarantined 12197 | -7/Factory | Manually triggered Chute Trap 12197 | -7/Factory | Sucked down chute 12197 | -7/Factory | Entered Waste 12198 | -7/Waste | Joined by Warlord forces that had cleared the area 12246 | -7/Waste | Discovered new exit (range 12) 12255 | -7/Waste | 2 allies followed down the chute 12271 | -7/Waste | Identified exit to Factory 12275 | -7/Waste | Entered Factory 12275 | -7/Factory | Accompanied by 4 allies 12385 | -7/Factory | Repaired Imp. System Shield 12421 | -7/Factory | Central database locked down 12702 | -7/Factory | Discovered exit to Factory (range 8) 12831 | -7/Factory | Discovered exit to Lower Caves (range 6) 12871 | -7/Factory | Discovered exit to Factory (range 15) 12878 | -7/Factory | Destroyed 9 combat bots 12951 | -7/Factory | Fabricated Exp. Sensor Array? 12983 | -7/Factory | Fabricated Adv. Hacking Suite? 13463 | -7/Factory | Fabricated Imp. Cesium-ion Thruster? 13679 | -7/Factory | Local fabrication network quarantined 13938 | -7/Factory | Repaired Prc. Grenade Launcher 13976 | -7/Factory | Repaired Power Sword 14042 | -7/Factory | Identified exit to Garrison 14046 | -7/Factory | Entered Garrison 14046 | -7/Garrison | Accompanied by 1 ally 14048 | -7/Garrison | Expanded RIF knowledge: Patrol Navigation 14135 | -7/Garrison | Destroyed 7 combat bots 14145 | -7/Garrison | Triggered checkpoint 14196 | -7/Garrison | Triggered checkpoint 14237 | -7/Garrison | Discovered new exit (range 10) 14240 | -7/Garrison | Identified exit to Factory 14240 | -7/Garrison | Entered Factory 14455 | -7/Factory | Discovered exit to Factory (range 14) 14999 | -7/Factory | Fabricated Remote Datajack? 15025 | -7/Factory | Local fabrication network quarantined 15053 | -7/Factory | Discovered exit to Factory (range 7) 15511 | -7/Factory | Repaired Missile Launcher 16206 | -7/Factory | Adv. Hacking Suite fried by hacking feedback 16657 | -7/Factory | Identified exit to Garrison 16657 | -7/Factory | Entered Garrison 16657 | -7/Garrison | Accompanied by 3 allies 16697 | -7/Garrison | Triggered checkpoint 16726 | -7/Garrison | Triggered checkpoint 16726 | -7/Garrison | Garrison Relay disabled 16823 | -7/Garrison | Core integrity fell below 50% 16901 | -7/Garrison | Discovered exit to Factory (range 12) 16906 | -7/Garrison | Expanded RIF knowledge: Coupler Efficiency 16928 | -7/Garrison | Triggered checkpoint 16933 | -7/Garrison | Garrison Relay disabled 16956 | -7/Garrison | Entered Factory 16956 | -6/Factory | Accompanied by 1 ally 16956 | -6/Factory | Evolved 2 slots: Utility x2 17374 | -6/Factory | Imp. System Shield fried by hacking feedback 17477 | -6/Factory | Repaired Remote Datajack? 17494 | -6/Factory | Repaired Mic. Fission Core? 17584 | -6/Factory | Fabricated Adv. Hacking Suite? 17723 | -6/Factory | Fabricated Field Propulsion Array? 17840 | -6/Factory | Local fabrication network quarantined 18216 | -6/Factory | Discovered new exit (range 16) 18566 | -6/Factory | Found Exp. Signal Interpreter 18826 | -6/Factory | Discovered new exit (range 6) 19277 | -6/Factory | Repaired Exp. Sensor Array? 19382 | -6/Factory | Build established: Hacker-Mutant 19535 | -6/Factory | Sucked down chute 19535 | -6/Factory | Entered Waste 19539 | -6/Waste | Spotted C-40 Crusher 19542 | -6/Waste | Spotted C-40 Crusher 19550 | -6/Waste | EMP discharged 19553 | -6/Waste | Spotted C-40 Crusher 19556 | -6/Waste | Spotted C-40 Crusher 19565 | -6/Waste | Discovered new exit (range 14) 19569 | -6/Waste | Identified exit to Factory 19570 | -6/Waste | Entered Factory 19686 | -6/Factory | Discovered new exit (range 7) 19931 | -6/Factory | Discovered new exit (range 12) 20012 | -6/Factory | Spotted B-75 Beast 20166 | -6/Factory | Discovered new exit (range 9) 20168 | -6/Factory | Identified exit to Lower Caves 20213 | -6/Factory | Fabricated Mni. Smartbomb Launcher? 20351 | -6/Factory | Fabricated Exp. Cesium-ion Thruster? 20362 | -6/Factory | Local fabrication network quarantined 20744 | -6/Factory | Build established: Hacker-Sprinter 20840 | -6/Factory | Repaired Field Propulsion Array 20971 | -6/Factory | Repaired Exp. Cesium-ion Thruster 21027 | -6/Factory | Repaired Imp. Light Armor Plating 21200 | -6/Factory | Identified exit to Garrison 21200 | -6/Factory | Entered Garrison 21274 | -6/Garrison | Triggered checkpoint 21308 | -6/Garrison | Garrison Relay disabled 21317 | -6/Garrison | Discovered new exit (range 15) 21335 | -6/Garrison | Triggered checkpoint 21468 | -6/Garrison | Discovered new exit (range 14) 21482 | -6/Garrison | Triggered checkpoint 21514 | -6/Garrison | Garrison Relay disabled 21542 | -6/Garrison | Triggered checkpoint 21594 | -6/Garrison | Destroyed 7 combat bots 21603 | -6/Garrison | Discovered new exit (range 14) 21607 | -6/Garrison | Identified exit to Factory 21609 | -6/Garrison | Expanded RIF knowledge: Robot Detection 21624 | -6/Garrison | Triggered checkpoint 21666 | -6/Garrison | Garrison Relay disabled 21694 | -6/Garrison | Entered Factory 21694 | -5/Factory | Evolved 2 slots: Propulsion x1, Utility x1 21878 | -5/Factory | Discovered new exit (range 5) 21883 | -5/Factory | Identified exit to Factory 21931 | -5/Factory | Repaired Imp. Light Armor Plating 22297 | -5/Factory | Found Launcher Loader 22539 | -5/Factory | Discovered exit to Factory (range 13) 23093 | -5/Factory | Imp. System Shield fried by hacking feedback 23400 | -5/Factory | Fabricated Mni. Fusion Reactor? 23485 | -5/Factory | Fabricated Impulse Thruster Array? 23542 | -5/Factory | Fabricated Adv. System Shield? 23543 | -5/Factory | Spotted B-75 Beast 24106 | -5/Factory | Local fabrication network quarantined 24345 | -5/Factory | Manually triggered Chute Trap 24345 | -5/Factory | Sucked down chute 24345 | -5/Factory | Entered Waste 24348 | -5/Waste | Spotted C-40 Crusher 24355 | -5/Waste | Spotted C-40 Crusher 24357 | -5/Waste | Spotted C-40 Crusher 24360 | -5/Waste | Spotted C-40 Crusher 24360 | -5/Waste | Discovered new exit (range 13) 24360 | -5/Waste | Spotted C-40 Crusher 24385 | -5/Waste | 4 allies followed down the chute 24389 | -5/Waste | Crushed by Compactor (1 part destroyed, 2 dropped) 24394 | -5/Waste | Entered Factory 24560 | -5/Factory | Fabricated Exp. Signal Interpreter (x1) 24575 | -5/Factory | Fabricated Kinetic Spear (x1) 24620 | -5/Factory | Fabricated Adv. Transmission Jammer (x1) 24711 | -5/Factory | Central database locked down 24803 | -5/Factory | Local fabrication network quarantined 25004 | -5/Factory | Repaired Imp. Cesium-ion Thruster? 25064 | -5/Factory | Identified exit to Garrison 25069 | -5/Factory | Entered Garrison 25069 | -5/Garrison | Accompanied by 1 ally 25264 | -5/Garrison | Triggered checkpoint 25292 | -5/Garrison | Triggered checkpoint 25320 | -5/Garrison | Triggered checkpoint 25364 | -5/Garrison | Discovered exit to Factory (range 10) 25454 | -5/Garrison | Triggered checkpoint 25476 | -5/Garrison | Garrison Relay disabled 25501 | -5/Garrison | Discovered exit to Factory (range 10) 25505 | -5/Garrison | Expanded RIF knowledge: Alert ID Control 25522 | -5/Garrison | Entered Factory 25522 | -4/Factory | Evolved 2 slots: Utility x2 25626 | -4/Factory | Discovered new exit (range 10) 26111 | -4/Factory | Repaired Mni. Fusion Reactor 26150 | -4/Factory | Discovered new exit (range 16) 26150 | -4/Factory | Found Imp. Powered Armor 26540 | -4/Factory | Repaired Impulse Thruster Array? 26605 | -4/Factory | Repaired Imp. Light Armor Plating 26695 | -4/Factory | Repaired Exp. Cesium-ion Thruster 27135 | -4/Factory | Local fabrication network quarantined 27241 | -4/Factory | Discovered new exit (range 16) 27312 | -4/Factory | Fabricated Quantum Shading Machine? 27319 | -4/Factory | Adv. Hacking Suite fried by hacking feedback 27701 | -4/Factory | Build established: Wizard-Sprinter 27847 | -4/Factory | Identified exit to Upper Caves 27920 | -4/Factory | Manually triggered Chute Trap 27920 | -4/Factory | Sucked down chute 27920 | -4/Factory | Entered Waste 27921 | -4/Waste | Met a frightened Derelict 27932 | -4/Waste | Spotted C-40 Crusher 27934 | -4/Waste | Spotted C-40 Crusher 27934 | -4/Waste | Spotted C-40 Crusher 27935 | -4/Waste | EMP discharged 27935 | -4/Waste | System corruption reached 10% 27943 | -4/Waste | Discovered new exit (range 16) 27943 | -4/Waste | Spotted C-40 Crusher 27943 | -4/Waste | Spotted C-40 Crusher 27944 | -4/Waste | Spotted C-40 Crusher 27947 | -4/Waste | Identified exit to Factory 27951 | -4/Waste | Entered Factory 28137 | -4/Factory | Build established: Hacker-Sprinter 28367 | -4/Factory | Discovered exit to Upper Caves (range 16) 28525 | -4/Factory | Build established: Wizard-Sprinter 28878 | -4/Factory | Discovered new exit (range 7) 28960 | -4/Factory | Hacking Suite fried by hacking feedback 29031 | -4/Factory | Spotted B-86 Titan 29165 | -4/Factory | Local fabrication network quarantined 29193 | -4/Factory | Fabricated Com. Tesla Bomb Launcher? 29201 | -4/Factory | First assault squad dispatched 29204 | -4/Factory | Fabricated Exp. Sensor Array (x1) 29353 | -4/Factory | Repaired Mni. Fusion Reactor 29388 | -4/Factory | Repaired Impulse Thruster Array 29546 | -4/Factory | Repaired Kinetic Spear 29645 | -4/Factory | Build established: Hacker-Sprinter 30340 | -4/Factory | Discovered new exit (range 16) 30344 | -4/Factory | Identified exit to Extension 30411 | -4/Factory | Discovered new exit (range 9) 30429 | -4/Factory | Identified exit to Research 30484 | -4/Factory | Discovered exit to Research (range 6) 30648 | -4/Factory | Identified exit to Garrison 30651 | -4/Factory | Entered Garrison 30651 | -4/Garrison | Accompanied by 1 ally 30663 | -4/Garrison | Phase Generator disabled 30688 | -4/Garrison | Garrison Relay disabled 30860 | -4/Garrison | Triggered checkpoint 30936 | -4/Garrison | Triggered checkpoint 30972 | -4/Garrison | Spotted B-86 Titan 31089 | -4/Garrison | Triggered checkpoint 31164 | -4/Garrison | Discovered new exit (range 10) 31168 | -4/Garrison | Identified exit to Factory 31277 | -4/Garrison | Build established: Hacker-Mutant 31372 | -4/Garrison | Triggered checkpoint 31374 | -4/Garrison | Triggered checkpoint 31528 | -4/Garrison | Destroyed B-86 Titan 31682 | -4/Garrison | Discovered exit to Factory (range 7) 31687 | -4/Garrison | Expanded RIF knowledge: Program Shield 31868 | -4/Garrison | Triggered checkpoint 31918 | -4/Garrison | Garrison Relay disabled 31932 | -4/Garrison | Entered Factory 31932 | -4/Factory | Accompanied by 1 ally 32059 | -4/Factory | Build established: Hacker-Sprinter 32243 | -4/Factory | Repaired Fusion Compressor 32263 | -4/Factory | Repaired Imp. Light Armor Plating 32523 | -4/Factory | Discovered exit to Research (range 9) 33097 | -4/Factory | Lost 4 parts (1p1n2u) 33225 | -4/Factory | Fabricated Exp. Sensor Array? 33270 | -4/Factory | Fabricated Impulse Thruster Array? 33331 | -4/Factory | Fabricated Mni. Fusion Reactor? 33437 | -4/Factory | Local fabrication network quarantined 33583 | -4/Factory | Fabricated Exp. Utility Shielding? 33679 | -4/Factory | Repaired Cld. Field Propulsion Drive 33858 | -4/Factory | Discovered exit to Research (range 10) 33983 | -4/Factory | Build established: Machinist-Sprinter 34336 | -4/Factory | Build established: Machinist-Ninja 34347 | -4/Factory | Adv. Hacking Suite fried by hacking feedback 34429 | -4/Factory | Discovered exit to Extension (range 14) 34432 | -4/Factory | First assault squad dispatched 34548 | -4/Factory | Entered Extension 34642 | -4/Extension | Rescued A7 35219 | -4/Extension | Spotted B-86 Titan 35548 | -4/Extension | First assault squad dispatched 35669 | -4/Extension | Destroyed 7 combat bots 35671 | -4/Extension | Allies destroyed B-86 Titan 35695 | -4/Extension | Spotted B-86 Titan 35704 | -4/Extension | Assimilated Titan 7a with formatsys_high 35935 | -4/Extension | Discovered exit to Research (range 10) 35936 | -4/Extension | Discovered new exit (range 6) 35973 | -4/Extension | Disrupted transfer network 36162 | -4/Extension | Identified exit to Cetus 36162 | -4/Extension | Entered Cetus 36193 | -4/Cetus | Spotted Cetus Guard 36193 | -4/Cetus | Spotted Cetus Guard 36193 | -4/Cetus | Spotted Cetus Guard 36193 | -4/Cetus | Spotted Cetus Guard 36196 | -4/Cetus | Core integrity fell below 50% 36209 | -4/Cetus | Destroyed Cetus Guard 36210 | -4/Cetus | Destroyed Cetus Guard 36211 | -4/Cetus | Destroyed Cetus Guard 36212 | -4/Cetus | Destroyed Cetus Guard 36292 | -4/Cetus | Cetus Manufacturing Module disabled 36504 | -4/Cetus | Build established: Scavenger-Mutant 36550 | -4/Cetus | Destroyed 8 combat bots 36564 | -4/Cetus | Discovered new exit (range 22) 36599 | -4/Cetus | Spotted Cetus Guard 36599 | -4/Cetus | Spotted Cetus Guard 36599 | -4/Cetus | Spotted Cetus Guard 36599 | -4/Cetus | Spotted Cetus Guard 36612 | -4/Cetus | Destroyed Cetus Guard 36612 | -4/Cetus | Destroyed Cetus Guard 36613 | -4/Cetus | Destroyed Cetus Guard 36614 | -4/Cetus | Destroyed Cetus Guard 36620 | -4/Cetus | Discovered exit to Research (range 21) 36642 | -4/Cetus | Met Revision 17 36714 | -4/Cetus | Identified exit to Archives 36716 | -4/Cetus | Entered Archives 36834 | -4/Archives | Discovered new exit (range 22) 36841 | -4/Archives | Discovered exit to Research (range 22) 36841 | -4/Archives | Discovered new exit (range 18) 37265 | -4/Archives | Identified exit to Hub_04(d) 37266 | -4/Archives | Entered Hub_04(d) 37424 | -4/Hub_04(d) | Discovered exit to Research (range 9) 37694 | -4/Hub_04(d) | Discovered exit to Research (range 13) 37798 | -4/Hub_04(d) | Discovered exit to Research (range 11) 37868 | -4/Hub_04(d) | Discovered exit to Research (range 12) 37982 | -4/Hub_04(d) | Build established: Hacker-Ninja 38056 | -4/Hub_04(d) | Network Hub disabled 38082 | -4/Hub_04(d) | Spotted B-86 Titan 38121 | -4/Hub_04(d) | Network Hub disabled 38157 | -4/Hub_04(d) | Lost 3 parts (1n1u1w) 38158 | -4/Hub_04(d) | Destroyed 7 combat bots 38160 | -4/Hub_04(d) | Network Hub disabled 38160 | -4/Hub_04(d) | Spotted Lightning 38161 | -4/Hub_04(d) | Network Hub disabled 38176 | -4/Hub_04(d) | Spotted Lightning 38176 | -4/Hub_04(d) | Spotted Lightning 38176 | -4/Hub_04(d) | Entered Research 38176 | -3/Research | Evolved 2 slots: Utility x2 38310 | -3/Research | Repaired Fusion Compressor 38363 | -3/Research | Spotted B-86 Titan 38548 | -3/Research | Discovered new exit (range 16) 38624 | -3/Research | Identified exit to Research 38704 | -3/Research | Build established: Wizard-Ninja 38756 | -3/Research | Discovered new exit (range 19) 39018 | -3/Research | Spotted B-86 Titan 39150 | -3/Research | Spotted B-86 Titan 39317 | -3/Research | Repaired Centrium Medium Armor Plating? 39423 | -3/Research | Identified exit to Testing 39452 | -3/Research | Fabricated Mni. Fusion Reactor? 39457 | -3/Research | Fabricated Exp. Sensor Array? 39594 | -3/Research | Fabricated Imp. Q-thruster? 39600 | -3/Research | Found Unknown Launcher 39600 | -3/Research | Identified Gamma Bomb Array 39745 | -3/Research | Repaired Broken Imp. Cloaking Device? 39834 | -3/Research | Repaired Adv. Weight Redist. System 39857 | -3/Research | Fabricated Imp. Q-thruster? 39870 | -3/Research | Repaired Com. Tesla Bomb Launcher? 39963 | -3/Research | Local fabrication network quarantined 40058 | -3/Research | Found Fusion Bomb Launcher 40139 | -3/Research | Entered Testing 40159 | -3/Testing | Found Prototype Energy Cannon 40159 | -3/Testing | Identified Potential Cannon 40337 | -3/Testing | Repaired Cld. Field Propulsion Drive? 40389 | -3/Testing | First assault squad dispatched 40511 | -3/Testing | Found Prototype Energy Cannon 40513 | -3/Testing | Identified Disintegrator 40537 | -3/Testing | Build established: Hacker-Ninja 40627 | -3/Testing | Found Prototype Device 40627 | -3/Testing | Identified Exp. Hardlight Generator 40652 | -3/Testing | Found Prototype Energy Cannon 40653 | -3/Testing | Identified Null Cannon 40743 | -3/Testing | Found Enh. Force Lance 40807 | -3/Testing | Discovered exit to Research (range 8) 40834 | -3/Testing | Found Prototype Device 40834 | -3/Testing | Identified AEGIS Remote Shield 40949 | -3/Testing | System corruption reached 10% 41467 | -3/Testing | Fabricated Mni. Smartbomb Launcher? 41562 | -3/Testing | Lost 5 parts (1n4u) 41590 | -3/Testing | Fabricated Imp. Q-thruster? 41590 | -3/Testing | Found Prototype Protection 41590 | -3/Testing | Identified Med. Regenerative Plating 41593 | -3/Testing | Found Prototype Protection 41593 | -3/Testing | Identified Lgt. Regenerative Plating 41597 | -3/Testing | Found Prototype Protection 41597 | -3/Testing | Identified Hvy. Regenerative Plating 41599 | -3/Testing | Found Prototype Protection 41599 | -3/Testing | Identified SHELL Armor 41705 | -3/Testing | Found Prototype Processor 41726 | -3/Testing | Identified Spectral Analyzer 41738 | -3/Testing | Found Prototype Device 41741 | -3/Testing | Identified Exp. Thermal Shield 41756 | -3/Testing | Local fabrication network quarantined 41759 | -3/Testing | Found Prototype Launcher 41802 | -3/Testing | Fabricated Mni. Smartbomb Launcher? 41811 | -3/Testing | Identified Z-bomb Delivery System 41857 | -3/Testing | Found Prototype Energy Cannon 41857 | -3/Testing | Identified Hpw. Disruptor Cannon 42095 | -3/Testing | Spotted PL-NST3JUYWXD 42206 | -3/Testing | Entered Research 42206 | -2/Research | Evolved 2 slots: Power x1, Propulsion x1 42269 | -2/Research | Build established: Hacker-Scout 42315 | -2/Research | Spotted B-90 Cyclops 42426 | -2/Research | Repaired Cld. Field Propulsion Drive 42471 | -2/Research | Spotted B-90 Cyclops 42512 | -2/Research | Discovered new exit (range 22) 42704 | -2/Research | Found Vibroblade 42706 | -2/Research | Found Vibroblade 42758 | -2/Research | Spotted B-90 Cyclops 42977 | -2/Research | Discovered new exit (range 21) 43519 | -2/Research | Found Vibroblade 43724 | -2/Research | Spotted B-90 Cyclops 43758 | -2/Research | Discovered new exit (range 10) 43829 | -2/Research | Identified exit to Access 43890 | -2/Research | Found Prototype Processor 43982 | -2/Research | First assault squad dispatched 44018 | -2/Research | Local fabrication network quarantined 44068 | -2/Research | Fabricated Quantum Shading Machine (x1) 44078 | -2/Research | Identified Exp. Target Analyzer 44119 | -2/Research | Found Prototype Launcher 44129 | -2/Research | Identified Tesla Bomb Launcher 44139 | -2/Research | Found Prototype Device 44149 | -2/Research | Identified Femtoactuators 44198 | -2/Research | Repaired Centrium Medium Armor Plating? 44288 | -2/Research | Repaired Lgt. Quantum Reactor 44388 | -2/Research | Repaired Cld. Field Propulsion Drive 44483 | -2/Research | Repaired Kinetic Spear 44530 | -2/Research | Identified exit to Quarantine 44530 | -2/Research | Entered Quarantine 44556 | -2/Quarantine | Found Alien Artifact 44586 | -2/Quarantine | Repaired Adv. Weight Redist. System 44618 | -2/Quarantine | Found Alien Slashing Weapon 44657 | -2/Quarantine | Discovered exit to Access (range 7) 44689 | -2/Quarantine | Found Alien Artifact 44714 | -2/Quarantine | Found Alien Impact Weapon 44716 | -2/Quarantine | Identified Matter Drive 44777 | -2/Quarantine | Identified Sigix Broadsword 44923 | -2/Quarantine | Identified Stasis Generator 44957 | -2/Quarantine | Found Alien Artifact 44963 | -2/Quarantine | Found Alien Artifact 44969 | -2/Quarantine | Identified Core Reset Matrix 44969 | -2/Quarantine | Identified Subatomic Replicator 45284 | -2/Quarantine | Found Alien Artifact 45284 | -2/Quarantine | Identified Phase Armor 45705 | -2/Quarantine | Found Antimissile System 45798 | -2/Quarantine | Found Alien Launcher 46108 | -2/Quarantine | Repaired Exp. Sensor Array 46200 | -2/Quarantine | Spotted Fortress 46207 | -2/Quarantine | Identified Core Stripper 46256 | -2/Quarantine | Destroyed Fortress 46345 | -2/Quarantine | Found Prototype Device 46345 | -2/Quarantine | Identified EM Dispersion Field 46348 | -2/Quarantine | Found Prototype Device 46348 | -2/Quarantine | Identified Thermal Barrier 46362 | -2/Quarantine | Found Prototype Device 46362 | -2/Quarantine | Identified Exp. Force Field 46366 | -2/Quarantine | Found Prototype Reactor 46366 | -2/Quarantine | Identified Vortex Chain Reactor 46369 | -2/Quarantine | Found Vortex Chain Reactor 46432 | -2/Quarantine | Found Prototype Protection 46432 | -2/Quarantine | Identified Centrium Heavy Armor Plating 46478 | -2/Quarantine | Discovered new exit (range 5) 46478 | -2/Quarantine | Identified exit to Section 7 46507 | -2/Quarantine | Entered Section 7 46513 | -2/Section 7 | Found Alien Artifact 46519 | -2/Section 7 | Spotted S7 Guard 46581 | -2/Section 7 | Found Alien Artifact 46667 | -2/Section 7 | Identified Integrated Heat Negator 46667 | -2/Section 7 | Installed Integrated Heat Negator, increased core heat dissipation (+2%) 46669 | -2/Section 7 | Identified Integrated Reactor 46669 | -2/Section 7 | Installed Integrated Reactor, increased core energy generation (+2%) 46676 | -2/Section 7 | Spotted B-90 Cyclops 46715 | -2/Section 7 | Found Alien Artifact 46753 | -2/Section 7 | Identified Integrated Dissipator 46753 | -2/Section 7 | Installed Integrated Dissipator, increased core heat dissipation (+2%) 46827 | -2/Section 7 | Spotted B-90 Cyclops 47062 | -2/Section 7 | Found Integrated Reactor 47063 | -2/Section 7 | Installed Integrated Reactor, increased core energy generation (+2%) 47097 | -2/Section 7 | Discovered exit to Access (range 14) 47193 | -2/Section 7 | Lost 4 parts (1p2n1u) 47259 | -2/Section 7 | Build established: Scavenger-Sprinter 47495 | -2/Section 7 | Found Prototype Hackware 47761 | -2/Section 7 | Spotted S7 Guard 47767 | -2/Section 7 | Found Alien Artifact 47879 | -2/Section 7 | Lost 3 parts (1n2u) 47915 | -2/Section 7 | Identified Integrated Singularity Reactor 47915 | -2/Section 7 | Identified Exp. Hacking Suite 47920 | -2/Section 7 | Destroyed 7 combat bots 47969 | -2/Section 7 | Found Alien Artifact 47978 | -2/Section 7 | Identified Integrity Redistributor 48003 | -2/Section 7 | Spotted Executioner 48003 | -2/Section 7 | Spotted Executioner 48020 | -2/Section 7 | Spotted B-99 Colossus 48063 | -2/Section 7 | Found Alien Artifact 48065 | -2/Section 7 | Found Alien Artifact 48136 | -2/Section 7 | Spotted Alpha 7 48140 | -2/Section 7 | Core integrity fell below 50% 48171 | -2/Section 7 | Lost 4 parts (2n2u) 48201 | -2/Section 7 | Identified LRC Storage 48201 | -2/Section 7 | Installed LRC Storage, increased inventory capacity (+2) 48202 | -2/Section 7 | Identified LRC Matter Compressor 48203 | -2/Section 7 | Installed LRC Matter Compressor, increased matter storage capacity (+125) 48205 | -2/Section 7 | Used Subatomic Replicator to replicate Integrated Singularity Reactor 48206 | -2/Section 7 | Installed Integrated Singularity Reactor, increased core energy generation (+2%) 48208 | -2/Section 7 | Installed Integrated Singularity Reactor, increased core energy generation (+2%) 48433 | -2/Section 7 | Build established: Hauler-Sprinter 48477 | -2/Section 7 | Found Alien Energy Gun 48479 | -2/Section 7 | Identified Sigix Quantum Sheargun 48481 | -2/Section 7 | Found Sigix Quantum Sheargun 48486 | -2/Section 7 | Found Sigix Quantum Sheargun 48702 | -2/Section 7 | Identified exit to Garrison 48702 | -2/Section 7 | Entered Garrison 48704 | -2/Garrison | Expanded RIF knowledge: Coupler Efficiency 48710 | -2/Garrison | Used Integrity Redistributor, redistributed integrity to core (+114) 48767 | -2/Garrison | Triggered checkpoint 48767 | -2/Garrison | Triggered checkpoint 48784 | -2/Garrison | Build established: Scavenger-Sprinter 48834 | -2/Garrison | Spotted B-90 Cyclops 48907 | -2/Garrison | Lost 3 parts (1n2u) 48944 | -2/Garrison | Destroyed B-90 Cyclops 49096 | -2/Garrison | Build established: Scavenger-Mutant 49197 | -2/Garrison | Discovered exit to Access (range 12) 49260 | -2/Garrison | Triggered checkpoint 49404 | -2/Garrison | Garrison Relay disabled 49453 | -2/Garrison | Entered Access 49453 | -1/Access | Evolved 2 slots: Utility x1, Weapon x1 49492 | -1/Access | Found Unknown Device 49492 | -1/Access | Identified Quantum Capacitor 49607 | -1/Access | Spotted B-99 Colossus 49772 | -1/Access | Spotted B-99 Colossus 49772 | -1/Access | Spotted B-99 Colossus 49808 | -1/Access | Lost 4 parts (2n1u1w) 49942 | -1/Access | Discovered new exit (range 5) 50203 | -1/Access | First assault squad dispatched 50377 | -1/Access | Destroyed 10 combat bots 50685 | -1/Access | High security lockdown imminent 50710 | -1/Access | Destroyed 8 combat bots 50765 | -1/Access | High security lockdown engaged 50898 | -1/Access | Spotted Executioner 50900 | -1/Access | Spotted Executioner 50907 | -1/Access | Destroyed Executioner 50933 | -1/Access | Destroyed Executioner 50996 | -1/Access | Destroyed 15 combat bots 50999 | -1/Access | Lost 8 parts (1p1n5u1w) 51028 | -1/Access | Spotted Investigator 51034 | -1/Access | Scanned by Researcher 51041 | -1/Access | Destroyed Investigator 51065 | -1/Access | Destroyed 8 combat bots 51081 | -1/Access | Spotted Striker 51084 | -1/Access | Spotted Striker 51095 | -1/Access | Destroyed Striker 51119 | -1/Access | System corruption reached 10% 51132 | -1/Access | Destroyed Striker 51209 | -1/Access | Destroyed 14 combat bots 51222 | -1/Access | Lost 3 parts (3u) 51264 | -1/Access | Spotted Striker 51264 | -1/Access | Spotted Striker 51274 | -1/Access | Destroyed Striker 51277 | -1/Access | Destroyed Striker 51313 | -1/Access | Destroyed 7 combat bots 51336 | -1/Access | Destroyed Investigator 51345 | -1/Access | Garrison activated, responded to threat 51360 | -1/Access | Spotted Striker 51365 | -1/Access | System corruption reached 30% 51367 | -1/Access | Identified Sigix Terminator 51368 | -1/Access | Fired Sigix Terminator 51389 | -1/Access | Destroyed 23 combat bots 51444 | -1/Access | Destroyed Striker 51459 | -1/Access | Lost 11 parts (3p2n5u1w) 51461 | -1/Access | Core integrity fell below 50% 51530 | -1/Access | Lost 7 parts (1p3n2u1w) 51534 | -1/Access | Core integrity fell below 20% 51537 | -1/Access | Destroyed by G-73 Enforcer with Heavy Laser Last Messages --------------- 51500_ System corrupted: Vibroblade targeting data glitched. 51506_ System corrupted: Matter fused (-8). 51519_ K-01 Serf cleans the Hyperwave Decoder. 51524_ Acquired Plasma Sword. 51525_ System corrupted: Matter fused (-6). 51532_ C-30 ARC bursts open, deploying its payload. 51532_ G-73 Enforcer unfolds itself. 51532_ I-47 Archangel unfolds itself. 51532_ Cesium-ion Thruster destroyed. 51533_ C-30 ARC bursts open, deploying its payload. 51533_ G-73 Enforcer unfolds itself. 51533_ E-15 Imp unfolds itself. 51533_ Exp. Signal Interpreter destroyed. 51534_ K-01 Serf collects debris. 51534_ Adv. Weight Redist. System destroyed. 51535_ Cesium-ion Thruster blown off. 51535_ Vibroblade blown off. 51536_ Acquired Cesium-ion Thruster. 51537_ K-01 Serf collects debris. 51537_ Cesium-ion Thruster destroyed. Map ----- +----------------------------------------------------+ | ????? ???????????????????????????????????????? | | ????? ???????????????????????????????????????? | | ????? ???????????????????????????????????????? | | ???""" ???????????????????????????????????????? | | ???""" ???????????????????????????????????????? | | ???""" #??###########??????????????????????????? | | ""?"" #??# ! #??????????????????????????? | | """""" #??# ! #??????????????????????????? | | """""" #??# #??????????????????????????? | | "" """ #??# #??????????????????????????? | | ########+#####????? ????????????????????? | | #????????? ??????????????????? | | ##### #????????? #???????????????? | | """" #???# #???????## ###?????????????? | | """" #???# #??????? #?????????????? | | """" ##+#???# #??????? ###???????????? | | """" #??????# #??????? ???????????? | | """" #??????# #??????# ????????????? | | #??????# #??????# ?????????????? | | #??????# ###????# ??????????????? | | #??????# #????# """??????????????? | | #??????+ #????# i """"?????????????? | | ##?????# #????# """"?????????????? | | #?????# #????# """?????????????? | | #?????# ######e """"?????????????? | | #?????# p g g@ """"?????????????? | | #?????+ ggg/g """ ?????????????? | | #?????# k%gg ???????????? | | ! #?????###+####### ?????????? | | #???????????????? ????????? | | ######+####????????????????#############?????????? | | ?????????????????????????????????????????????????? | | ?????????????????????????????????????????????????? | | ?????????????????????????????????????????????????? | | ?????????????????????????????????????????????????? | | ?????????????????????????????????????????????????? | | ?????????????????????????????????????????????????? | | ?????????????????????????????????????????????????? | | ?????????????????????????????????????????????????? | | ?????????????????????????????????????????????????? | | ###?#????????###?????????????????????????????????? | | # ??????? #?????????????????????????????????? | | # ? ?? #?????????????????????????????????? | | # """""" #?????????????????????????????????? | | !!# ""S""" #?????????????????????????????????? | | ! # "" #?????????????????????????????????? | | # ##############????????????????????? | | # = # ???????????????????? | | # # ???????????????????? | | # # ???????????????????? | +----------------------------------------------------+ Best States ------------- Heat Dissipation 112 Coolant Potential 120 Energy Generation 117 Energy Capacity 1950 Matter Stores 725 Matter Capacity 725 Sight Range 22 Robot Scan Range 30 Terrain Scan Density 10 Jamming Range 16 Cloak Strength 3 Power Amplification 30 Additional Mass Support 38 Corruption Prevention 12 Armor Coverage 2400 Resistance: KI 25 Resistance: TH 50 Resistance: EM 75 Core Shielding 30 Propulsion Shielding 33 Utility Shielding 90 Weapon Shielding 66 Melee Speed Boost 50 Phase Shifting 15 Evasion (%) 79 Melee Accuracy 8 Target Analysis 8 Recoil Reduction 4 Offensive Hacking 46 Defensive Hacking 26 Item Schematics ----------------- Lrg. Storage Unit | -10/Materials | Hacked Hcp. Storage Unit | -10/Materials | Hacked Med. Storage Unit | -10/Materials | Hacked Hacking Suite | -8/Materials | Scanalyzed Imp. Powered Armor | -7/Factory | Hacked Imp. Cesium-ion Thruster | -7/Factory | Hacked Imp. Hacking Suite | -7/Factory | Hacked Mic. Fission Core | -7/Factory | Hacked Adv. Hacking Suite | -7/Factory | Hacked Imp. Weapon Cycler | -7/Factory | Hacked Exp. Sensor Array | -7/Factory | Hacked Missile Launcher | -7/Factory | Scanalyzed System Restoration Module | -7/Factory | Hacked Exp. Signal Interpreter | -6/Factory | Hacked Field Propulsion Array | -6/Factory | Hacked Mni. Smartbomb Launcher | -6/Factory | Hacked Exp. Cesium-ion Thruster | -6/Factory | Hacked Adv. Transmission Jammer | -6/Factory | Hacked Exp. Utility Shielding | -6/Factory | Hacked Cld. Cesium-ion Thruster | -6/Factory | Scanalyzed Matter Compressor | -6/Factory | Hacked Impulse Thruster Array | -5/Factory | Hacked Exp. Targeting Computer | -5/Factory | Hacked Mni. Fusion Reactor | -5/Factory | Hacked Adv. System Shield | -5/Factory | Hacked Kinetic Spear | -5/Factory | Hacked Vibroblade | -5/Factory | Hacked EM Disruption Field | -5/Factory | Hacked Adv. Actuator Array | -5/Factory | Hacked Nanoactuators | -5/Factory | Hacked Adv. Remote Datajack | -5/Factory | Hacked Adv. Force Field | -4/Factory | Hacked Quantum Shading Machine | -4/Factory | Hacked Diametric Drive | -4/Factory | Scanalyzed Com. Tesla Bomb Launcher | -4/Factory | Hacked Exp. Transmission Jammer | -4/Factory | Hacked Imp. Q-thruster | -3/Research | Hacked Lgt. Regenerative Plating | -3/Testing | Hacked Cld. Linear Gravjet | -2/Research | Hacked Exp. Target Analyzer | -2/Research | Scanalyzed Robot Schematics ------------------ None Fabricated ------------ Adv. Hacking Suite | x1 | -7/Factory Imp. Cesium-ion Thruster | x1 | -7/Factory Adv. Hacking Suite | x1 | -7/Factory Mic. Fission Core | x2 | -7/Factory Exp. Sensor Array | x1 | -7/Factory Adv. Hacking Suite | x1 | -7/Factory Imp. Cesium-ion Thruster | x1 | -7/Factory Remote Datajack | x1 | -7/Factory | Preloaded Adv. Hacking Suite | x1 | -6/Factory Field Propulsion Array | x2 | -6/Factory Mni. Smartbomb Launcher | x1 | -6/Factory Exp. Cesium-ion Thruster | x1 | -6/Factory Mni. Fusion Reactor | x1 | -5/Factory Impulse Thruster Array | x1 | -5/Factory Adv. System Shield | x1 | -5/Factory Exp. Signal Interpreter | x1 | -5/Factory Kinetic Spear | x1 | -5/Factory Adv. Transmission Jammer | x1 | -5/Factory Quantum Shading Machine | x1 | -4/Factory Com. Tesla Bomb Launcher | x1 | -4/Factory Exp. Sensor Array | x1 | -4/Factory Exp. Sensor Array | x1 | -4/Factory Impulse Thruster Array | x1 | -4/Factory Mni. Fusion Reactor | x1 | -4/Factory Exp. Utility Shielding | x1 | -4/Factory Mni. Fusion Reactor | x1 | -3/Research Exp. Sensor Array | x1 | -3/Research Imp. Q-thruster | x1 | -3/Research Imp. Q-thruster | x1 | -3/Research Mni. Smartbomb Launcher | x1 | -3/Testing Imp. Q-thruster | x1 | -3/Testing Mni. Smartbomb Launcher | x1 | -3/Testing Quantum Shading Machine | x1 | -2/Research Alien Tech Used ----------------- Matter Drive Sigix Broadsword Stasis Generator Phase Armor Core Stripper Integrated Heat Negator Integrated Reactor Integrated Dissipator LRC Storage LRC Matter Compressor Subatomic Replicator Integrated Singularity Reactor Sigix Quantum Sheargun Integrity Redistributor Sigix Terminator Achievements -------------- Left-hand Path Challenges ------------ None Game ------ Seed GravitonGodInterpreter Manual? 0 Play Time 17:50:07 Cumulative 932.8 hours Start 2020.02.22 @ 17:05:19 End 2020.02.24 @ 19:56:16 Sessions 12 Manual Loads 0 Difficulty Rogue Special Mode None Game No. 348 Rogue 348 Adventurer 0 Explorer 0 Win Type - Total 21 Types 11/1/7/0/0/0/2 Lore% 95 Gallery% 96 Achievement% 81 Wizard Run 0 Options --------- ASCII 0 Keyboard 0 Movement Vi Keybinds 0 Fullscreen 0 Font 12/Crisp Map View 76x50 Tactical HUD 1 Map Filters NONE Filters NONE Steam 1 RUN: de8be711-dc1e-475a-9211-25a7e59ea133